Workbook

Sheet 報價單
A1: ='價審單(試用) '!C3 -> 永融營造
A2: 工程名稱 | C2: ='價審單(試用) '!E3 -> 大園313住宅
A3: 交貨日期 | C3: 圖面&選樣確認後7個月貨抵工地
A4: 交貨地點 | C4: ='價審單(試用) '!C4 -> 桃園市大園
A5: 付款方式 | C5: 1.簽約後付訂金(30天票期)30%； 2.貨抵工地付貨到款(30天票期)40%； 3.安裝完成後20%； 4.交車後付尾款(30天票期)10%
A6: 項次 | B6: 項目 | E6: 數量 | F6: 單位 | G6: 單價((含稅) | H6: 單價(含稅) | I6: 複價(含稅)
A7: 1 | B7: MAH100-6*5-2S45 | E7: 2 | F7: 台 | G7: =[1]價格分析表!I3 -> 831600 | H7: 510001 | I7: =E7*H7 -> 1020002 | K7: 1.05
A12: 備註
A13: 1 | B13: 試車完畢交貨之日起算保固保養12個月 | L13: 試車完畢交貨之日起算保固保養12個月
A14: 2 | B14: 上開報價為標準配備其他詳細規範請參閱附件或本公司型錄
A15: 3 | B15: 本工程如需額外配合工程，再另行報價
A16: 4 | B16: 交貨後每台30工作天內完工
A19: 合計(含稅) | I19: =I7 -> 1020002
A20: 營業稅(5%)(B) | I20: =I19*0.05 -> 51000.1
A21: 合計(含稅)(A+B) | I21: =I19+I20 -> 1071002.1

Sheet 規格表
A1: 永佳捷科技股份有限公司
A3: MASADA 電梯規格材質一覽表
A4: 項次 | B4: 名 稱 | D4: 興富發建設
A5: 1 | B5: 規 格 | D5: MAH100-8*3-2S45 | E5: P15-C105-12S
A6: 2 | B6: 電梯機種 | D6: 無機房
A7: 3 | B7: 電梯用途 | D7: 無障礙電梯 | E7: 乘客用
A8: 4 | B8: 電梯數量 | D8: 1台 | E8: 1台
A9: 5 | B9: 額定載重 | D9: 550KG （8人座） | E9: 1000KG （15人座）
A10: 6 | B10: 電梯速度 | D10: 45公尺/分鐘 | E10: 150公尺/分鐘
A11: 7 | B11: 停數(樓名) | D11: 3停(1F~3F)
A12: 8 | B12: 控制方式 | D12: 交流變壓變頻微電腦無段變速控制（VVVF） | E12: 交流變壓變頻微電腦無段變速控制（VVVF）
A13: 9 | B13: 操作方式 | D13: 全自動控制 | E13: 選擇性集合式全自動控制
A14: 10 | B14: 開門方式 | D14: 側開電動滑行門 | E14: 兩片門中央對開水平電動滑行門
A15: 11 | B15: 開門尺寸 | D15: 淨寬：900mm；淨高：2100mm | E15: 淨寬：900mm；淨高：2200mm
A16: 12 | B16: 電源系統 | D16: 動力：單相220V 照明：交流單相110V 60HZ | E16: 動力：交流三相380V或220V 60Hz 照明：交流單相110V 60HZ
A17: 13 | B17: 乘場型式 | C17: 按鈕 | D17: 面板為髮紋不銹鋼，微觸式按鈕
C18: 指示器 | D18: LED型樓層附上下箭頭，面板為髮紋不銹鋼
C19: 門框 | D19: 3停(1F~2F)樓採標準窄型,3F樓控制盤與門框採一體型，皆為不鏽鋼髮紋。
C20: 門扇 | D20: 烤漆RAL9003砂紋
A21: 14 | B21: 車廂型式 | C21: 幕板
C22: 前側壁板 | D22: 烤漆RAL9003砂紋
C23: 門扇 | D23: 烤漆RAL9003砂紋
C24: 兩側壁板 | D24: 烤漆RAL9003砂紋+鏡面不鏽鋼鍍黑鈦
C25: 後側壁板 | D25: 烤漆RAL9003砂紋+鏡面不鏽鋼鍍黑鈦
C26: 地 板 | D26: PVC地板-MD005
C27: 天花板 | D27: MB010
C28: 指示器 | D28: 附於車廂操作盤上，LED指示器
C29: 操 作 盤 | D29: 面板均為髮紋不鏽鋼平板LED款-ME016
C30: 井道尺寸 | D30: 寬度:1700 mm 深度:1750 mm | E30: 機坑:1250 mm OH:3850 mm
C31: 車廂尺寸 | D31: 淨寬：1100 mm；淨深：1350 mm；淨高：2300 mm
C32: 附件 | D32: 附戶開延遲按鈕一只、錯誤叫車取消功能、ARD停電自動復歸最近樓層、車廂意外移動保護裝置、制動力檢測功能、無障礙設備、紅外線光幕、LED照明、12個月保養保固。
A33: 備註 | C33: 1.『內政部108.11.4台內營字第1080818187號令修正「建築技術規則」 ，與昇降設備有關的為「建築設備編第一百十條 第六項」條文:「六、昇降機應設有停電復歸咎近樓層之裝置。」實施日為自發佈實施日起新申請建照者每台電梯均需設置發電機(自家發)或停電自動著床裝置(俗稱:ARD貨ALD或UPS)』
C34: 2.配合業主監視器及對講機拉線工程，線材及設備由業主負責。
C35: 3.採永磁同步無齒輪式主機(PM馬達)。
C36: 4.本報價不含昇降道補強鋼件及二次構件。
C37: 5.建築物相關適法由業主自行負責。
C38: 6.全樓乘場門框門扇為標準窄框髮紋不鏽鋼製，門扇為烤漆或彩妝版。

Sheet 價審單(試用)
A1: 價 審 單 | X1: 機種 | Z1: 人份/載重 | AA1: 停數 | AB1: 開門方式 | AC1: 速度 | AD1: 金額
A2: 卷 號 | E2: 營業員 | G2: 章又仁 | H2: 特記事項： 1、 2、 3、 | P2: 未稅(單價) | Q2: 未稅(複價) | R2: 未稅(單價) | S2: 未稅(複價) | X2: - | Y2: - | Z2: - | AA2: - | AB2: - | AC2: - | AD2: =0 -> 0
A3: 客戶名稱 | C3: 永融營造 | D3: 案件名稱 | E3: 大園313住宅 | P3: 未稅(單價) | Q3: 未稅(複價) | R3: 未稅(單價) | S3: 未稅(複價) | X3: MAE | Y3: 100 | Z3: 6 | AA3: 5 | AB3: CO | AC3: 60 | AD3: 811000
A4: 工地地址 | C4: 桃園市大園 | E4: 詢價單號 | P4: 未稅(單價) | Q4: 未稅(複價) | R4: 未稅(單價) | S4: 未稅(複價) | X4: MAE | Y4: 100 | Z4: 6 | AA4: 6 | AB4: CO | AC4: 60 | AD4: 851000
A5: 預定成交日 | C5: 11210/30 | D5: 預訂交期 | E5: 113/3/10 | G5: 罰則 | H5: 0/1000天 | J5: 1.業務員權限>=80%以上；<80-75%呈至業務協理審核；<75%以下呈至總經理審核，並附上《附表一》。 2.如有訂金保證金(函)、履約保證金(函)、保固保證金(函)需呈至顧問審核. | P5: 未稅(單價) | Q5: 未稅(複價) | R5: 未稅(單價) | S5: 未稅(複價) | X5: MAE | Y5: 100 | Z5: 6 | AA5: 7 | AB5: CO | AC5: 60 | AD5: 891000
A6: 總台數 | C6: =SUM(K11:K20) -> 2 | D6: 保證金或保函 | E6: 0 | G6: 破價% | H6: 批示售價 | P6: 未稅(單價) | Q6: 未稅(複價) | R6: 未稅(單價) | S6: 未稅(複價) | X6: MAE | Y6: 100 | Z6: 6 | AA6: 8 | AB6: CO | AC6: 60 | AD6: 931000
A7: 牌價總額 | C7: =L21+G36 -> 1476000 | D7: 售價總額 | E7: 1020002 | G7: =E7/C7 -> 0.6910582656 | P7: 未稅(單價) | Q7: 未稅(複價) | R7: 未稅(單價) | S7: 未稅(複價) | X7: MAE | Y7: 100 | Z7: 6 | AA7: 9 | AB7: CO | AC7: 60 | AD7: 971000
A8: 破價總額 | C8: =E7-C7 -> -455998 | D8: 破價(台) | E8: =C8/C6 -> -227999 | X8: MAE | Y8: 100 | Z8: 6 | AA8: 10 | AB8: CO | AC8: 60 | AD8: 1011000
A9: 整機單價 | X9: MAE | Y9: 100 | Z9: 6 | AA9: 11 | AB9: CO | AC9: 60 | AD9: 1051000
A10: 項次 | C10: 機種 | D10: 型號 | E10: 人份/載重 | G10: 停數 | H10: 開門方式 | I10: 速度 | J10: 單價 | K10: 台數 | L10: 複價 | N10: 備註 | P10: 未稅(單價) | Q10: 未稅(複價) | R10: 未稅(單價) | S10: 未稅(複價) | X10: MAE | Y10: 100 | Z10: 6 | AA10: 12 | AB10: CO | AC10: 60 | AD10: 1091000
A11: 1 | B11: 1 | C11: MAH | D11: 100 | E11: 6 | G11: 5 | H11: 2S | I11: 45 | J11: =LOOKUP(1,0/(($X$2:$X$2002=C11)*($Y$2:$Y$2002=D11)*($Z$2:$Z$2002=E11)*($AA$2:$AA$2002=G11)*($AB$2:$AB$2002=H11)*($AC$2:$AC$2002=I11)),$AD$2:$AD$2002) -> 732000 | K11: 2 | L11: =K11*J11 -> 1464000 | N11: =J11*0.65 -> 475800 | P11: =ROUND(I11/G11/1.05,-3) -> 0 | Q11: =P11*G11 -> 0 | R11: 1950000 | S11: 1950000 | X11: MAE | Y11: 100 | Z11: 6 | AA11: 13 | AB11: CO | AC11: 60 | AD11: 1131000
A12: 2 | B12: 2 | J12: =LOOKUP(1,0/(($X$2:$X$2002=C12)*($Y$2:$Y$2002=D12)*($Z$2:$Z$2002=E12)*($AA$2:$AA$2002=G12)*($AB$2:$AB$2002=H12)*($AC$2:$AC$2002=I12)),$AD$2:$AD$2002) -> 0 | L12: =K12*J12 -> 0 | P12: =ROUND(I12/G12/1.05,-3) ->  | Q12: =P12*G12 ->  | R12: 1979000 | S12: 1979000 | X12: MAE | Y12: 100 | Z12: 6 | AA12: 14 | AB12: CO | AC12: 60 | AD12: 1171000
A13: 3 | B13: 3 | J13: =LOOKUP(1,0/(($X$2:$X$2002=C13)*($Y$2:$Y$2002=D13)*($Z$2:$Z$2002=E13)*($AA$2:$AA$2002=G13)*($AB$2:$AB$2002=H13)*($AC$2:$AC$2002=I13)),$AD$2:$AD$2002) -> 0 | L13: =K13*J13 -> 0 | X13: MAE | Y13: 100 | Z13: 6 | AA13: 15 | AB13: CO | AC13: 60 | AD13: 1211000
A14: 4 | B14: 4 | J14: 0 | L14: 0 | X14: MAE | Y14: 100 | Z14: 6 | AA14: 16 | AB14: CO | AC14: 60 | AD14: 1251000
A15: 5 | B15: 5 | J15: 0 | L15: 0 | X15: MAE | Y15: 100 | Z15: 6 | AA15: 17 | AB15: CO | AC15: 60 | AD15: 1291000
A16: 6 | B16: 6 | J16: 0 | L16: 0 | X16: MAE | Y16: 100 | Z16: 6 | AA16: 18 | AB16: CO | AC16: 60 | AD16: 1331000
A17: 7 | B17: 7 | J17: 0 | L17: 0 | X17: MAE | Y17: 100 | Z17: 6 | AA17: 19 | AB17: CO | AC17: 60 | AD17: 1371000
A18: 8 | B18: 8 | J18: 0 | L18: 0 | P18: 未稅(單價) | Q18: 未稅(複價) | R18: 未稅(單價) | S18: 未稅(複價) | X18: MAE | Y18: 100 | Z18: 6 | AA18: 20 | AB18: CO | AC18: 60 | AD18: 1411000
A19: 9 | B19: 9 | J19: 0 | L19: 0 | P19: =ROUND(#REF!/#REF!/1.05,-3) ->  | Q19: =P19*#REF! ->  | R19: 1950000 | S19: 1950000 | X19: MAE | Y19: 100 | Z19: 8 | AA19: 5 | AB19: CO | AC19: 60 | AD19: 811000
A20: 10 | B20: 10 | J20: 0 | L20: 0 | P20: =ROUND(#REF!/#REF!/1.05,-3) ->  | Q20: =P20*#REF! ->  | R20: 1979000 | S20: 1979000 | X20: MAE | Y20: 100 | Z20: 8 | AA20: 6 | AB20: CO | AC20: 60 | AD20: 851000
K21: 小計 | L21: =SUM(L11:L20) -> 1464000 | X21: MAE | Y21: 100 | Z21: 8 | AA21: 7 | AB21: CO | AC21: 60 | AD21: 891000
A22: OPTION加價 | X22: MAE | Y22: 100 | Z22: 8 | AA22: 8 | AB22: CO | AC22: 60 | AD22: 931000
A23: 項次 | B23: 式樣代碼 | C23: 選配規格 | D23: 單價 | E23: 數量 | F23: 單位 | G23: 複價 | H23: 項次 | I23: 式樣代碼 | J23: 選配規格 | K23: 單價 | L23: 單位 | M23: 數量 | N23: 複價 | X23: MAE | Y23: 100 | Z23: 8 | AA23: 9 | AB23: CO | AC23: 60 | AD23: 971000
A24: =ROW()-23 -> 1 | B24: 10 | C24: =INDEX([2]OPTION表!$E$1:$E$2001,MATCH($B$24:$B$35,[2]OPTION表!$D$1:$D$2001,0)) -> MC005 | D24: =INDEX([2]OPTION表!$I$3:$I$2001,MATCH($C$24:$C$35,[2]OPTION表!$E$3:$E$2001,0)) -> 3000 | E24: 2 | F24: =INDEX([2]OPTION表!$G$1:$G$2000,MATCH($B$24:$B$35,[2]OPTION表!$D$1:$D$2000)) -> 支 | G24: =D24*E24 -> 6000 | H24: =ROW()-11 -> 13 | J24: =INDEX([2]OPTION表!$E$1:$E$2001,MATCH($I$24:$I$35,[2]OPTION表!$D$1:$D$2001,0)) -> - | K24: =INDEX([2]OPTION表!$I$3:$I$2001,MATCH($J$24:$J$35,[2]OPTION表!$E$3:$E$2001,0)) -> 0 | L24: =INDEX([2]OPTION表!$G$1:$G$2000,MATCH($I$24:$I$35,[2]OPTION表!$D$1:$D$2000)) -> - | N24: =K24*M24 -> 0 | X24: MAE | Y24: 100 | Z24: 8 | AA24: 10 | AB24: CO | AC24: 60 | AD24: 1011000
A25: =ROW()-23 -> 2 | B25: 11 | C25: =INDEX([2]OPTION表!$E$1:$E$2001,MATCH($B$24:$B$35,[2]OPTION表!$D$1:$D$2001,0)) -> ME017 | D25: =INDEX([2]OPTION表!$I$3:$I$2001,MATCH($C$24:$C$35,[2]OPTION表!$E$3:$E$2001,0)) -> 3000 | E25: 2 | F25: =INDEX([2]OPTION表!$G$1:$G$2000,MATCH($B$24:$B$35,[2]OPTION表!$D$1:$D$2000)) -> 台 | G25: =D25*E25 -> 6000 | H25: =ROW()-11 -> 14 | J25: =INDEX([2]OPTION表!$E$1:$E$2001,MATCH($I$24:$I$35,[2]OPTION表!$D$1:$D$2001,0)) -> - | K25: =INDEX([2]OPTION表!$I$3:$I$2001,MATCH($J$24:$J$35,[2]OPTION表!$E$3:$E$2001,0)) -> 0 | L25: =INDEX([2]OPTION表!$G$1:$G$2000,MATCH($I$24:$I$35,[2]OPTION表!$D$1:$D$2000)) -> - | N25: =K25*M25 -> 0 | X25: MAE | Y25: 100 | Z25: 8 | AA25: 11 | AB25: CO | AC25: 60 | AD25: 1051000
A26: 3 | C26: =INDEX([2]OPTION表!$E$1:$E$2001,MATCH($B$24:$B$35,[2]OPTION表!$D$1:$D$2001,0)) -> - | D26: =INDEX([2]OPTION表!$I$3:$I$2001,MATCH($C$24:$C$35,[2]OPTION表!$E$3:$E$2001,0)) -> 0 | E26: 13 | F26: =INDEX([2]OPTION表!$G$1:$G$2000,MATCH($B$24:$B$35,[2]OPTION表!$D$1:$D$2000)) -> - | G26: =D26*E26 -> 0 | H26: 15 | J26: =INDEX([2]OPTION表!$E$1:$E$2001,MATCH($I$24:$I$35,[2]OPTION表!$D$1:$D$2001,0)) -> - | K26: =INDEX([2]OPTION表!$I$3:$I$2001,MATCH($J$24:$J$35,[2]OPTION表!$E$3:$E$2001,0)) -> 0 | L26: =INDEX([2]OPTION表!$G$1:$G$2000,MATCH($I$24:$I$35,[2]OPTION表!$D$1:$D$2000)) -> - | N26: 0 | P26: =ROUND(I23/#REF!/1.05,-3) ->  | Q26: =P26*#REF! ->  | R26: 2023000 | S26: 2023000 | X26: MAE | Y26: 100 | Z26: 8 | AA26: 12 | AB26: CO | AC26: 60 | AD26: 1091000
A27: 4 | C27: =INDEX([2]OPTION表!$E$1:$E$2001,MATCH($B$24:$B$35,[2]OPTION表!$D$1:$D$2001,0)) -> - | D27: =INDEX([2]OPTION表!$I$3:$I$2001,MATCH($C$24:$C$35,[2]OPTION表!$E$3:$E$2001,0)) -> 0 | E27: 10 | F27: =INDEX([2]OPTION表!$G$1:$G$2000,MATCH($B$24:$B$35,[2]OPTION表!$D$1:$D$2000)) -> - | G27: 0 | H27: 16 | J27: =INDEX([2]OPTION表!$E$1:$E$2001,MATCH($I$24:$I$35,[2]OPTION表!$D$1:$D$2001,0)) -> - | K27: =INDEX([2]OPTION表!$I$3:$I$2001,MATCH($J$24:$J$35,[2]OPTION表!$E$3:$E$2001,0)) -> 0 | L27: =INDEX([2]OPTION表!$G$1:$G$2000,MATCH($I$24:$I$35,[2]OPTION表!$D$1:$D$2000)) -> - | N27: 0 | X27: MAE | Y27: 100 | Z27: 8 | AA27: 13 | AB27: CO | AC27: 60 | AD27: 1131000
A28: 5 | C28: =INDEX([2]OPTION表!$E$1:$E$2001,MATCH($B$24:$B$35,[2]OPTION表!$D$1:$D$2001,0)) -> - | D28: =INDEX([2]OPTION表!$I$3:$I$2001,MATCH($C$24:$C$35,[2]OPTION表!$E$3:$E$2001,0)) -> 0 | E28: 1 | F28: =INDEX([2]OPTION表!$G$1:$G$2000,MATCH($B$24:$B$35,[2]OPTION表!$D$1:$D$2000)) -> - | G28: 0 | H28: 17 | J28: =INDEX([2]OPTION表!$E$1:$E$2001,MATCH($I$24:$I$35,[2]OPTION表!$D$1:$D$2001,0)) -> - | K28: =INDEX([2]OPTION表!$I$3:$I$2001,MATCH($J$24:$J$35,[2]OPTION表!$E$3:$E$2001,0)) -> 0 | L28: =INDEX([2]OPTION表!$G$1:$G$2000,MATCH($I$24:$I$35,[2]OPTION表!$D$1:$D$2000)) -> - | N28: 0 | X28: MAE | Y28: 100 | Z28: 8 | AA28: 14 | AB28: CO | AC28: 60 | AD28: 1171000
A29: 6 | C29: =INDEX([2]OPTION表!$E$1:$E$2001,MATCH($B$24:$B$35,[2]OPTION表!$D$1:$D$2001,0)) -> - | D29: =INDEX([2]OPTION表!$I$3:$I$2001,MATCH($C$24:$C$35,[2]OPTION表!$E$3:$E$2001,0)) -> 0 | E29: 5 | F29: =INDEX([2]OPTION表!$G$1:$G$2000,MATCH($B$24:$B$35,[2]OPTION表!$D$1:$D$2000)) -> - | G29: 0 | H29: 18 | J29: =INDEX([2]OPTION表!$E$1:$E$2001,MATCH($I$24:$I$35,[2]OPTION表!$D$1:$D$2001,0)) -> - | K29: =INDEX([2]OPTION表!$I$3:$I$2001,MATCH($J$24:$J$35,[2]OPTION表!$E$3:$E$2001,0)) -> 0 | L29: =INDEX([2]OPTION表!$G$1:$G$2000,MATCH($I$24:$I$35,[2]OPTION表!$D$1:$D$2000)) -> - | N29: 0 | X29: MAE | Y29: 100 | Z29: 8 | AA29: 15 | AB29: CO | AC29: 60 | AD29: 1211000
A30: 7 | C30: =INDEX([2]OPTION表!$E$1:$E$2001,MATCH($B$24:$B$35,[2]OPTION表!$D$1:$D$2001,0)) -> - | D30: =INDEX([2]OPTION表!$I$3:$I$2001,MATCH($C$24:$C$35,[2]OPTION表!$E$3:$E$2001,0)) -> 0 | E30: 5 | F30: =INDEX([2]OPTION表!$G$1:$G$2000,MATCH($B$24:$B$35,[2]OPTION表!$D$1:$D$2000)) -> - | G30: 0 | H30: 19 | J30: =INDEX([2]OPTION表!$E$1:$E$2001,MATCH($I$24:$I$35,[2]OPTION表!$D$1:$D$2001,0)) -> - | K30: =INDEX([2]OPTION表!$I$3:$I$2001,MATCH($J$24:$J$35,[2]OPTION表!$E$3:$E$2001,0)) -> 0 | L30: =INDEX([2]OPTION表!$G$1:$G$2000,MATCH($I$24:$I$35,[2]OPTION表!$D$1:$D$2000)) -> - | N30: 0 | X30: MAE | Y30: 100 | Z30: 8 | AA30: 16 | AB30: CO | AC30: 60 | AD30: 1251000
A31: 8 | C31: =INDEX([2]OPTION表!$E$1:$E$2001,MATCH($B$24:$B$35,[2]OPTION表!$D$1:$D$2001,0)) -> - | D31: =INDEX([2]OPTION表!$I$3:$I$2001,MATCH($C$24:$C$35,[2]OPTION表!$E$3:$E$2001,0)) -> 0 | F31: =INDEX([2]OPTION表!$G$1:$G$2000,MATCH($B$24:$B$35,[2]OPTION表!$D$1:$D$2000)) -> - | G31: 0 | H31: 20 | J31: =INDEX([2]OPTION表!$E$1:$E$2001,MATCH($I$24:$I$35,[2]OPTION表!$D$1:$D$2001,0)) -> - | K31: =INDEX([2]OPTION表!$I$3:$I$2001,MATCH($J$24:$J$35,[2]OPTION表!$E$3:$E$2001,0)) -> 0 | L31: =INDEX([2]OPTION表!$G$1:$G$2000,MATCH($I$24:$I$35,[2]OPTION表!$D$1:$D$2000)) -> - | N31: 0 | X31: MAE | Y31: 100 | Z31: 8 | AA31: 17 | AB31: CO | AC31: 60 | AD31: 1291000
A32: 9 | C32: =INDEX([2]OPTION表!$E$1:$E$2001,MATCH($B$24:$B$35,[2]OPTION表!$D$1:$D$2001,0)) -> - | D32: =INDEX([2]OPTION表!$I$3:$I$2001,MATCH($C$24:$C$35,[2]OPTION表!$E$3:$E$2001,0)) -> 0 | F32: =INDEX([2]OPTION表!$G$1:$G$2000,MATCH($B$24:$B$35,[2]OPTION表!$D$1:$D$2000)) -> - | G32: 0 | H32: 21 | J32: =INDEX([2]OPTION表!$E$1:$E$2001,MATCH($I$24:$I$35,[2]OPTION表!$D$1:$D$2001,0)) -> - | K32: =INDEX([2]OPTION表!$I$3:$I$2001,MATCH($J$24:$J$35,[2]OPTION表!$E$3:$E$2001,0)) -> 0 | L32: =INDEX([2]OPTION表!$G$1:$G$2000,MATCH($I$24:$I$35,[2]OPTION表!$D$1:$D$2000)) -> - | N32: 0 | X32: MAE | Y32: 100 | Z32: 8 | AA32: 18 | AB32: CO | AC32: 60 | AD32: 1331000
A33: 10 | C33: =INDEX([2]OPTION表!$E$1:$E$2001,MATCH($B$24:$B$35,[2]OPTION表!$D$1:$D$2001,0)) -> - | D33: =INDEX([2]OPTION表!$I$3:$I$2001,MATCH($C$24:$C$35,[2]OPTION表!$E$3:$E$2001,0)) -> 0 | F33: =INDEX([2]OPTION表!$G$1:$G$2000,MATCH($B$24:$B$35,[2]OPTION表!$D$1:$D$2000)) -> - | G33: 0 | H33: 22 | J33: 清安費或配合費 | K33: 2000 | L33: 車 | X33: MAE | Y33: 100 | Z33: 8 | AA33: 19 | AB33: CO | AC33: 60 | AD33: 1371000
A34: 11 | C34: =INDEX([2]OPTION表!$E$1:$E$2001,MATCH($B$24:$B$35,[2]OPTION表!$D$1:$D$2001,0)) -> - | D34: =INDEX([2]OPTION表!$I$3:$I$2001,MATCH($C$24:$C$35,[2]OPTION表!$E$3:$E$2001,0)) -> 0 | F34: =INDEX([2]OPTION表!$G$1:$G$2000,MATCH($B$24:$B$35,[2]OPTION表!$D$1:$D$2000)) -> - | G34: 0 | H34: 23 | J34: 保固保養費 | K34: 30000 | L34: 年 | N34: 0 | X34: MAE | Y34: 100 | Z34: 8 | AA34: 20 | AB34: CO | AC34: 60 | AD34: 1411000
A35: 12 | C35: =INDEX([2]OPTION表!$E$1:$E$2001,MATCH($B$24:$B$35,[2]OPTION表!$D$1:$D$2001,0)) -> - | D35: =INDEX([2]OPTION表!$I$3:$I$2001,MATCH($C$24:$C$35,[2]OPTION表!$E$3:$E$2001,0)) -> 0 | F35: =INDEX([2]OPTION表!$G$1:$G$2000,MATCH($B$24:$B$35,[2]OPTION表!$D$1:$D$2000)) -> - | G35: 0 | H35: 24 | J35: 冠軍磁磚壁板 | L35: 台 | N35: 0 | X35: MAE | Y35: 100 | Z35: 9 | AA35: 5 | AB35: CO | AC35: 60 | AD35: 817000
A36: 加價價格請參考表下OPTION表 | E36: 小計 | G36: =SUM(G24:G35,N24:N35) -> 12000 | X36: MAE | Y36: 100 | Z36: 9 | AA36: 6 | AB36: CO | AC36: 60 | AD36: 857000
A37: 付款辦法 | C37: 款別 | D37: 比列 | E37: 金額 | G37: 票期 | H37: 批示比例 | J37: 備註 | X37: MAE | Y37: 100 | Z37: 9 | AA37: 7 | AB37: CO | AC37: 60 | AD37: 897000
A38: 材料 | C38: 1、訂金 | D38: 0.3 | E38: =D38*$E$7 -> 306000.6 | G38: 30天期票 | J38: 天井採用MB014 | X38: MAE | Y38: 100 | Z38: 9 | AA38: 8 | AB38: CO | AC38: 60 | AD38: 937000
C39: 2、貨到工地款 | D39: 0.4 | E39: =D39*$E$7 -> 408000.8 | G39: 30天期票 | J39: 側板左、右、後側原烤漆部分改採彩妝鋼板H150 | X39: MAE | Y39: 100 | Z39: 9 | AA39: 9 | AB39: CO | AC39: 60 | AD39: 977000
E40: 0 | G40: 30天期票 | J40: 地板花色為PVC-MD006 | X40: MAE | Y40: 100 | Z40: 9 | AA40: 10 | AB40: CO | AC40: 60 | AD40: 1017000
C41: 3、安裝完畢款 | D41: 0.2 | E41: 204000.4 | G41: 30天期票 | J41: 扶手一隻置於操作盤側採MC005 | X41: MAE | Y41: 100 | Z41: 9 | AA41: 10 | AB41: CO | AC41: 60 | AD41: 1017000
A42: 安裝 | C42: 4、驗收款 | D42: 0.1 | E42: 102000.2 | G42: 30天期票 | J42: 車廂操作盤採ME017置於車廂左側或右側(三片板材皆彩妝鋼板之中間片) | X42: MAE | Y42: 100 | Z42: 9 | AA42: 10 | AB42: CO | AC42: 60 | AD42: 1017000
E43: 0 | J43: 車廂門採鏡面鍍鈦黑，乘場門扇全樓皆採彩妝鋼板C139 | X43: MAE | Y43: 100 | Z43: 9 | AA43: 11 | AB43: CO | AC43: 60 | AD43: 1057000
A44: 合計 | D44: =SUM(D38:D43) -> 1 | E44: =SUM(E38:E43) -> 1020002 | X44: MAE | Y44: 100 | Z44: 9 | AA44: 12 | AB44: CO | AC44: 60 | AD44: 1097000
A45: 總經理 | D45: 業務部 協理 | G45: 業務部 承辦人 | J45: 區經理 | M45: 營業員 | N45: 章又仁 | X45: MAE | Y45: 100 | Z45: 9 | AA45: 13 | AB45: CO | AC45: 60 | AD45: 1137000
A46: 版次：1.4.3 | X46: MAE | Y46: 100 | Z46: 9 | AA46: 14 | AB46: CO | AC46: 60 | AD46: 1177000
X47: MAE | Y47: 100 | Z47: 9 | AA47: 15 | AB47: CO | AC47: 60 | AD47: 1217000
X48: MAE | Y48: 100 | Z48: 9 | AA48: 16 | AB48: CO | AC48: 60 | AD48: 1257000
X49: MAE | Y49: 100 | Z49: 9 | AA49: 17 | AB49: CO | AC49: 60 | AD49: 1297000
X50: MAE | Y50: 100 | Z50: 9 | AA50: 18 | AB50: CO | AC50: 60 | AD50: 1337000
X51: MAE | Y51: 100 | Z51: 9 | AA51: 19 | AB51: CO | AC51: 60 | AD51: 1377000
X52: MAE | Y52: 100 | Z52: 9 | AA52: 20 | AB52: CO | AC52: 60 | AD52: 1417000
X53: MAE | Y53: 100 | Z53: 10 | AA53: 5 | AB53: CO | AC53: 60 | AD53: 824000
X54: MAE | Y54: 100 | Z54: 10 | AA54: 6 | AB54: CO | AC54: 60 | AD54: 864000
X55: MAE | Y55: 100 | Z55: 10 | AA55: 7 | AB55: CO | AC55: 60 | AD55: 904000
X56: MAE | Y56: 100 | Z56: 10 | AA56: 8 | AB56: CO | AC56: 60 | AD56: 944000
X57: MAE | Y57: 100 | Z57: 10 | AA57: 9 | AB57: CO | AC57: 60 | AD57: 984000
X58: MAE | Y58: 100 | Z58: 10 | AA58: 10 | AB58: CO | AC58: 60 | AD58: 1024000
X59: MAE | Y59: 100 | Z59: 10 | AA59: 11 | AB59: CO | AC59: 60 | AD59: 1064000
X60: MAE | Y60: 100 | Z60: 10 | AA60: 12 | AB60: CO | AC60: 60 | AD60: 1104000
X61: MAE | Y61: 100 | Z61: 10 | AA61: 13 | AB61: CO | AC61: 60 | AD61: 1144000
X62: MAE | Y62: 100 | Z62: 10 | AA62: 14 | AB62: CO | AC62: 60 | AD62: 1184000
X63: MAE | Y63: 100 | Z63: 10 | AA63: 15 | AB63: CO | AC63: 60 | AD63: 1224000
X64: MAE | Y64: 100 | Z64: 10 | AA64: 16 | AB64: CO | AC64: 60 | AD64: 1264000
X65: MAE | Y65: 100 | Z65: 10 | AA65: 17 | AB65: CO | AC65: 60 | AD65: 1304000
X66: MAE | Y66: 100 | Z66: 10 | AA66: 18 | AB66: CO | AC66: 60 | AD66: 1344000
X67: MAE | Y67: 100 | Z67: 10 | AA67: 19 | AB67: CO | AC67: 60 | AD67: 1384000
X68: MAE | Y68: 100 | Z68: 10 | AA68: 20 | AB68: CO | AC68: 60 | AD68: 1424000
X69: MAE | Y69: 100 | Z69: 11 | AA69: 5 | AB69: CO | AC69: 60 | AD69: 840000
X70: MAE | Y70: 100 | Z70: 11 | AA70: 6 | AB70: CO | AC70: 60 | AD70: 880000
X71: MAE | Y71: 100 | Z71: 11 | AA71: 7 | AB71: CO | AC71: 60 | AD71: 920000
X72: MAE | Y72: 100 | Z72: 11 | AA72: 8 | AB72: CO | AC72: 60 | AD72: 960000
X73: MAE | Y73: 100 | Z73: 11 | AA73: 9 | AB73: CO | AC73: 60 | AD73: 1000000
X74: MAE | Y74: 100 | Z74: 11 | AA74: 10 | AB74: CO | AC74: 60 | AD74: 1040000
X75: MAE | Y75: 100 | Z75: 11 | AA75: 11 | AB75: CO | AC75: 60 | AD75: 1080000
X76: MAE | Y76: 100 | Z76: 11 | AA76: 12 | AB76: CO | AC76: 60 | AD76: 1120000
X77: MAE | Y77: 100 | Z77: 11 | AA77: 13 | AB77: CO | AC77: 60 | AD77: 1160000
X78: MAE | Y78: 100 | Z78: 11 | AA78: 14 | AB78: CO | AC78: 60 | AD78: 1200000
X79: MAE | Y79: 100 | Z79: 11 | AA79: 15 | AB79: CO | AC79: 60 | AD79: 1240000
X80: MAE | Y80: 100 | Z80: 11 | AA80: 16 | AB80: CO | AC80: 60 | AD80: 1280000
X81: MAE | Y81: 100 | Z81: 11 | AA81: 17 | AB81: CO | AC81: 60 | AD81: 1320000
X82: MAE | Y82: 100 | Z82: 11 | AA82: 18 | AB82: CO | AC82: 60 | AD82: 1360000
X83: MAE | Y83: 100 | Z83: 11 | AA83: 19 | AB83: CO | AC83: 60 | AD83: 1400000
X84: MAE | Y84: 100 | Z84: 11 | AA84: 20 | AB84: CO | AC84: 60 | AD84: 1440000
X85: MAE | Y85: 100 | Z85: 12 | AA85: 5 | AB85: CO | AC85: 60 | AD85: 876000
X86: MAE | Y86: 100 | Z86: 12 | AA86: 6 | AB86: CO | AC86: 60 | AD86: 916000
X87: MAE | Y87: 100 | Z87: 12 | AA87: 7 | AB87: CO | AC87: 60 | AD87: 956000
X88: MAE | Y88: 100 | Z88: 12 | AA88: 8 | AB88: CO | AC88: 60 | AD88: 996000
X89: MAE | Y89: 100 | Z89: 12 | AA89: 9 | AB89: CO | AC89: 60 | AD89: 1036000
X90: MAE | Y90: 100 | Z90: 12 | AA90: 10 | AB90: CO | AC90: 60 | AD90: 1076000
X91: MAE | Y91: 100 | Z91: 12 | AA91: 11 | AB91: CO | AC91: 60 | AD91: 1116000
X92: MAE | Y92: 100 | Z92: 12 | AA92: 12 | AB92: CO | AC92: 60 | AD92: 1156000
X93: MAE | Y93: 100 | Z93: 12 | AA93: 13 | AB93: CO | AC93: 60 | AD93: 1196000
X94: MAE | Y94: 100 | Z94: 12 | AA94: 14 | AB94: CO | AC94: 60 | AD94: 1236000
X95: MAE | Y95: 100 | Z95: 12 | AA95: 15 | AB95: CO | AC95: 60 | AD95: 1276000
X96: MAE | Y96: 100 | Z96: 12 | AA96: 16 | AB96: CO | AC96: 60 | AD96: 1316000
X97: MAE | Y97: 100 | Z97: 12 | AA97: 17 | AB97: CO | AC97: 60 | AD97: 1356000
X98: MAE | Y98: 100 | Z98: 12 | AA98: 18 | AB98: CO | AC98: 60 | AD98: 1396000
X99: MAE | Y99: 100 | Z99: 12 | AA99: 19 | AB99: CO | AC99: 60 | AD99: 1436000
X100: MAE | Y100: 100 | Z100: 12 | AA100: 20 | AB100: CO | AC100: 60 | AD100: 1476000
X101: MAE | Y101: 100 | Z101: 13 | AA101: 5 | AB101: CO | AC101: 60 | AD101: 898000
X102: MAE | Y102: 100 | Z102: 13 | AA102: 6 | AB102: CO | AC102: 60 | AD102: 939000
X103: MAE | Y103: 100 | Z103: 13 | AA103: 7 | AB103: CO | AC103: 60 | AD103: 980000
X104: MAE | Y104: 100 | Z104: 13 | AA104: 8 | AB104: CO | AC104: 60 | AD104: 1021000
X105: MAE | Y105: 100 | Z105: 13 | AA105: 9 | AB105: CO | AC105: 60 | AD105: 1062000
X106: MAE | Y106: 100 | Z106: 13 | AA106: 10 | AB106: CO | AC106: 60 | AD106: 1103000
X107: MAE | Y107: 100 | Z107: 13 | AA107: 11 | AB107: CO | AC107: 60 | AD107: 1144000
X108: MAE | Y108: 100 | Z108: 13 | AA108: 12 | AB108: CO | AC108: 60 | AD108: 1185000
X109: MAE | Y109: 100 | Z109: 13 | AA109: 13 | AB109: CO | AC109: 60 | AD109: 1226000
X110: MAE | Y110: 100 | Z110: 13 | AA110: 14 | AB110: CO | AC110: 60 | AD110: 1267000
X111: MAE | Y111: 100 | Z111: 13 | AA111: 15 | AB111: CO | AC111: 60 | AD111: 1308000
X112: MAE | Y112: 100 | Z112: 13 | AA112: 16 | AB112: CO | AC112: 60 | AD112: 1349000
X113: MAE | Y113: 100 | Z113: 13 | AA113: 17 | AB113: CO | AC113: 60 | AD113: 1390000
X114: MAE | Y114: 100 | Z114: 13 | AA114: 18 | AB114: CO | AC114: 60 | AD114: 1431000
X115: MAE | Y115: 100 | Z115: 13 | AA115: 19 | AB115: CO | AC115: 60 | AD115: 1472000
X116: MAE | Y116: 100 | Z116: 13 | AA116: 20 | AB116: CO | AC116: 60 | AD116: 1513000
X117: MAE | Y117: 100 | Z117: 15 | AA117: 5 | AB117: CO | AC117: 60 | AD117: 903000
X118: MAE | Y118: 100 | Z118: 15 | AA118: 6 | AB118: CO | AC118: 60 | AD118: 944000
X119: MAE | Y119: 100 | Z119: 15 | AA119: 7 | AB119: CO | AC119: 60 | AD119: 985000
X120: MAE | Y120: 100 | Z120: 15 | AA120: 8 | AB120: CO | AC120: 60 | AD120: 1026000
X121: MAE | Y121: 100 | Z121: 15 | AA121: 9 | AB121: CO | AC121: 60 | AD121: 1067000
X122: MAE | Y122: 100 | Z122: 15 | AA122: 10 | AB122: CO | AC122: 60 | AD122: 1108000
X123: MAE | Y123: 100 | Z123: 15 | AA123: 11 | AB123: CO | AC123: 60 | AD123: 1149000
X124: MAE | Y124: 100 | Z124: 15 | AA124: 12 | AB124: CO | AC124: 60 | AD124: 1190000
X125: MAE | Y125: 100 | Z125: 15 | AA125: 13 | AB125: CO | AC125: 60 | AD125: 1231000
X126: MAE | Y126: 100 | Z126: 15 | AA126: 14 | AB126: CO | AC126: 60 | AD126: 1272000
X127: MAE | Y127: 100 | Z127: 15 | AA127: 15 | AB127: CO | AC127: 60 | AD127: 1313000
X128: MAE | Y128: 100 | Z128: 15 | AA128: 16 | AB128: CO | AC128: 60 | AD128: 1354000
X129: MAE | Y129: 100 | Z129: 15 | AA129: 17 | AB129: CO | AC129: 60 | AD129: 1395000
X130: MAE | Y130: 100 | Z130: 15 | AA130: 18 | AB130: CO | AC130: 60 | AD130: 1436000
X131: MAE | Y131: 100 | Z131: 15 | AA131: 19 | AB131: CO | AC131: 60 | AD131: 1477000
X132: MAE | Y132: 100 | Z132: 15 | AA132: 20 | AB132: CO | AC132: 60 | AD132: 1518000
X133: MAE | Y133: 100 | Z133: 17 | AA133: 5 | AB133: CO | AC133: 60 | AD133: 1234000
X134: MAE | Y134: 100 | Z134: 17 | AA134: 6 | AB134: CO | AC134: 60 | AD134: 1285000
X135: MAE | Y135: 100 | Z135: 17 | AA135: 7 | AB135: CO | AC135: 60 | AD135: 1336000
X136: MAE | Y136: 100 | Z136: 17 | AA136: 8 | AB136: CO | AC136: 60 | AD136: 1387000
X137: MAE | Y137: 100 | Z137: 17 | AA137: 9 | AB137: CO | AC137: 60 | AD137: 1438000
X138: MAE | Y138: 100 | Z138: 17 | AA138: 10 | AB138: CO | AC138: 60 | AD138: 1489000
X139: MAE | Y139: 100 | Z139: 17 | AA139: 11 | AB139: CO | AC139: 60 | AD139: 1540000
X140: MAE | Y140: 100 | Z140: 17 | AA140: 12 | AB140: CO | AC140: 60 | AD140: 1591000
X141: MAE | Y141: 100 | Z141: 17 | AA141: 13 | AB141: CO | AC141: 60 | AD141: 1642000
X142: MAE | Y142: 100 | Z142: 17 | AA142: 14 | AB142: CO | AC142: 60 | AD142: 1693000
X143: MAE | Y143: 100 | Z143: 17 | AA143: 15 | AB143: CO | AC143: 60 | AD143: 1744000
X144: MAE | Y144: 100 | Z144: 17 | AA144: 16 | AB144: CO | AC144: 60 | AD144: 1795000
X145: MAE | Y145: 100 | Z145: 17 | AA145: 17 | AB145: CO | AC145: 60 | AD145: 1846000
X146: MAE | Y146: 100 | Z146: 17 | AA146: 18 | AB146: CO | AC146: 60 | AD146: 1897000
X147: MAE | Y147: 100 | Z147: 17 | AA147: 19 | AB147: CO | AC147: 60 | AD147: 1948000
X148: MAE | Y148: 100 | Z148: 17 | AA148: 20 | AB148: CO | AC148: 60 | AD148: 1999000
X149: MAE | Y149: 100 | Z149: 20 | AA149: 5 | AB149: CO | AC149: 60 | AD149: 1424000
X150: MAE | Y150: 100 | Z150: 20 | AA150: 6 | AB150: CO | AC150: 60 | AD150: 1478000
X151: MAE | Y151: 100 | Z151: 20 | AA151: 7 | AB151: CO | AC151: 60 | AD151: 1532000
X152: MAE | Y152: 100 | Z152: 20 | AA152: 8 | AB152: CO | AC152: 60 | AD152: 1586000
X153: MAE | Y153: 100 | Z153: 20 | AA153: 9 | AB153: CO | AC153: 60 | AD153: 1640000
X154: MAE | Y154: 100 | Z154: 20 | AA154: 10 | AB154: CO | AC154: 60 | AD154: 1694000
X155: MAE | Y155: 100 | Z155: 20 | AA155: 11 | AB155: CO | AC155: 60 | AD155: 1748000
X156: MAE | Y156: 100 | Z156: 20 | AA156: 12 | AB156: CO | AC156: 60 | AD156: 1802000
X157: MAE | Y157: 100 | Z157: 20 | AA157: 13 | AB157: CO | AC157: 60 | AD157: 1856000
X158: MAE | Y158: 100 | Z158: 20 | AA158: 14 | AB158: CO | AC158: 60 | AD158: 1910000
X159: MAE | Y159: 100 | Z159: 20 | AA159: 15 | AB159: CO | AC159: 60 | AD159: 1964000
X160: MAE | Y160: 100 | Z160: 20 | AA160: 16 | AB160: CO | AC160: 60 | AD160: 2018000
X161: MAE | Y161: 100 | Z161: 20 | AA161: 17 | AB161: CO | AC161: 60 | AD161: 2072000
X162: MAE | Y162: 100 | Z162: 20 | AA162: 18 | AB162: CO | AC162: 60 | AD162: 2126000
X163: MAE | Y163: 100 | Z163: 20 | AA163: 19 | AB163: CO | AC163: 60 | AD163: 2180000
X164: MAE | Y164: 100 | Z164: 20 | AA164: 20 | AB164: CO | AC164: 60 | AD164: 2234000
X165: MAE | Y165: 100 | Z165: 24 | AA165: 5 | AB165: CO | AC165: 60 | AD165: 1476000
X166: MAE | Y166: 100 | Z166: 24 | AA166: 6 | AB166: CO | AC166: 60 | AD166: 1530000
X167: MAE | Y167: 100 | Z167: 24 | AA167: 7 | AB167: CO | AC167: 60 | AD167: 1584000
X168: MAE | Y168: 100 | Z168: 24 | AA168: 8 | AB168: CO | AC168: 60 | AD168: 1638000
X169: MAE | Y169: 100 | Z169: 24 | AA169: 9 | AB169: CO | AC169: 60 | AD169: 1692000
X170: MAE | Y170: 100 | Z170: 24 | AA170: 10 | AB170: CO | AC170: 60 | AD170: 1746000
X171: MAE | Y171: 100 | Z171: 24 | AA171: 11 | AB171: CO | AC171: 60 | AD171: 1800000
X172: MAE | Y172: 100 | Z172: 24 | AA172: 12 | AB172: CO | AC172: 60 | AD172: 1854000
X173: MAE | Y173: 100 | Z173: 24 | AA173: 13 | AB173: CO | AC173: 60 | AD173: 1908000
X174: MAE | Y174: 100 | Z174: 24 | AA174: 14 | AB174: CO | AC174: 60 | AD174: 1962000
X175: MAE | Y175: 100 | Z175: 24 | AA175: 15 | AB175: CO | AC175: 60 | AD175: 2016000
X176: MAE | Y176: 100 | Z176: 24 | AA176: 16 | AB176: CO | AC176: 60 | AD176: 2070000
X177: MAE | Y177: 100 | Z177: 24 | AA177: 17 | AB177: CO | AC177: 60 | AD177: 2124000
X178: MAE | Y178: 100 | Z178: 24 | AA178: 18 | AB178: CO | AC178: 60 | AD178: 2178000
X179: MAE | Y179: 100 | Z179: 24 | AA179: 19 | AB179: CO | AC179: 60 | AD179: 2232000
X180: MAE | Y180: 100 | Z180: 24 | AA180: 20 | AB180: CO | AC180: 60 | AD180: 2286000
X181: MAE | Y181: 100 | Z181: 8 | AA181: 5 | AB181: CO | AC181: 90 | AD181: 810000
X182: MAE | Y182: 100 | Z182: 8 | AA182: 6 | AB182: CO | AC182: 90 | AD182: 850000
X183: MAE | Y183: 100 | Z183: 8 | AA183: 7 | AB183: CO | AC183: 90 | AD183: 890000
X184: MAE | Y184: 100 | Z184: 8 | AA184: 8 | AB184: CO | AC184: 90 | AD184: 930000
X185: MAE | Y185: 100 | Z185: 8 | AA185: 9 | AB185: CO | AC185: 90 | AD185: 970000
X186: MAE | Y186: 100 | Z186: 8 | AA186: 10 | AB186: CO | AC186: 90 | AD186: 1010000
X187: MAE | Y187: 100 | Z187: 8 | AA187: 11 | AB187: CO | AC187: 90 | AD187: 1050000
X188: MAE | Y188: 100 | Z188: 8 | AA188: 12 | AB188: CO | AC188: 90 | AD188: 1090000
X189: MAE | Y189: 100 | Z189: 8 | AA189: 13 | AB189: CO | AC189: 90 | AD189: 1130000
X190: MAE | Y190: 100 | Z190: 8 | AA190: 14 | AB190: CO | AC190: 90 | AD190: 1170000
X191: MAE | Y191: 100 | Z191: 8 | AA191: 15 | AB191: CO | AC191: 90 | AD191: 1210000
X192: MAE | Y192: 100 | Z192: 8 | AA192: 16 | AB192: CO | AC192: 90 | AD192: 1250000
X193: MAE | Y193: 100 | Z193: 8 | AA193: 17 | AB193: CO | AC193: 90 | AD193: 1290000
X194: MAE | Y194: 100 | Z194: 8 | AA194: 18 | AB194: CO | AC194: 90 | AD194: 1330000
X195: MAE | Y195: 100 | Z195: 8 | AA195: 19 | AB195: CO | AC195: 90 | AD195: 1370000
X196: MAE | Y196: 100 | Z196: 8 | AA196: 20 | AB196: CO | AC196: 90 | AD196: 1410000
X197: MAE | Y197: 100 | Z197: 9 | AA197: 5 | AB197: CO | AC197: 90 | AD197: 821000
X198: MAE | Y198: 100 | Z198: 9 | AA198: 6 | AB198: CO | AC198: 90 | AD198: 861000
X199: MAE | Y199: 100 | Z199: 9 | AA199: 7 | AB199: CO | AC199: 90 | AD199: 901000
X200: MAE | Y200: 100 | Z200: 9 | AA200: 8 | AB200: CO | AC200: 90 | AD200: 941000
... 1342 more rows

Sheet OPTION表
B1: 代號 111(上) | C1: 用途 | D1: 規調表 仕樣代碼 | E1: 品 名 | F1: 110(下)規格.仕樣 | G1: 單位 | H1: 111(上)牌價 | I1: 110(下)牌價 | J1: 牌價差異 | K1: 牌價差異比率 | L1: 備 註
D4: 0 | E4: - | G4: - | I4: 0
D5: 1 | E5: MA017 | G5: 台 | H5: 26000 | I5: 26000 | L5: 吊頂：MB010(RAL9005砂紋+乳白透光板) 兩側側板：烤漆RAL9003砂紋+鏡面不銹鋼鍍黑鈦 後側側板：烤漆RAL9003砂紋+鏡面不銹鋼鍍黑鈦 前側側板：烤漆RAL9003砂紋 轎門：烤漆RAL9003砂紋 地板：PVC(MD005)
D6: 2 | E6: MA018 | G6: 台 | H6: 10000 | I6: 10000 | L6: 吊頂：MB013(RAL9003砂紋+LED燈板) 兩側側板：烤漆RAL9005砂紋+烤漆RAL9003砂紋+ 鏡面不銹鋼鍍黑鈦 後側側板：烤漆RAL9003砂紋+鏡面不銹鋼鍍黑鈦 前側側板：烤漆RAL9003砂紋 轎門：烤漆RAL9003砂紋 地板：PVC(MD005)
D7: 3 | E7: MA019 | G7: 台 | H7: 0 | I7: 0 | L7: 吊頂：MB014(RAL9003砂紋+LED燈板) 兩側側板：彩妝鋼板ML002+鏡面不銹鋼 後側側板：彩妝鋼板ML002+鏡面不銹鋼 前側側板：發紋不銹鋼 轎門：彩妝鋼板ML002 地板：PVC(MD006)
D8: 4 | E8: MA020 | G8: 台 | H8: 0 | I8: 0 | L8: 吊頂：MB015(烤漆RAL1015+烤漆RAL9005+ LED方燈) 兩側側板：彩妝鋼板ML006 後側側板：彩妝鋼板ML006+鏡面飾條 前側側板：發紋不銹鋼 轎門：彩妝鋼板ML006 地板：PVC(MD001)
D9: 5 | E9: MA021 | G9: 台 | H9: 57000 | I9: 57000 | L9: 吊頂：MB011(鏡面不銹鋼鍍黑鈦+乳白透光板) 兩側側板：鏡面不銹鋼鍍黑鈦+蝕刻香檳金鍍色 後側側板：鏡面不銹鋼鍍黑鈦+蝕刻香檳金鍍色 前側側板：鏡面不銹鋼鍍黑鈦 轎門：鏡面不銹鋼鍍黑鈦 地板：PVC(MD006)
D10: 6 | E10: MB010 | G10: 台 | H10: 35000 | I10: 35000 | L10: 烤漆、乳白透光板
D11: 7 | E11: MB011 | G11: 台 | H11: 21000 | I11: 21000 | L11: 鏡面不銹鋼鍍黑鈦、乳白透光板
D12: 8 | E12: MC002 | G12: 支 | H12: 3000 | I12: 3000 | L12: 不銹鋼圓形扶手
D13: 9 | E13: MC004 | G13: 支 | H13: 3000 | I13: 3000 | L13: 不銹鋼紅木扶手
D14: 10 | E14: MC005 | G14: 支 | H14: 3000 | I14: 3000 | L14: 鏡面黑鈦扶手
D15: 11 | E15: ME017 | G15: 台 | H15: 3000 | I15: 3000 | L15: 在ME002基礎上追加電話機鍵盤
D16: 12 | E16: ME018 | G16: 台 | H16: 3000 | I16: 3000 | L16: 在ME003基礎上追加電話機鍵盤
D17: 13 | E17: MF003 | G17: 停 | H17: 1000 | I17: 1000 | L17: 不銹鋼無底盒
D18: 14 | E18: MF006 | G18: 停 | H18: 1500 | I18: 1500 | L18: 液晶無底盒
D19: 15 | E19: MA005 | G19: 台 | I19: 15000
D20: 16 | E20: MA006 | G20: 台 | I20: 90000
D21: 17 | E21: MA007 | G21: 台 | I21: 33600
D22: 18 | E22: MA008 | G22: 台 | I22: 135000
D23: 19 | E23: MB005 | G23: 台 | I23: 9500 | L23: 钻石银烤漆钢板边框、发纹不锈钢、乳白透光板、筒灯
D24: 20 | E24: MB006 | G24: 台 | I24: 9000 | L24: 镜面不锈钢、乳白透光板
D25: 21 | E25: MB007 | G25: 台 | I25: 12000 | L25: 黑色烤漆钢板边框、黑钛镜面不锈钢、乳白透光板、筒灯
D26: 22 | E26: MB008 | G26: 台 | I26: 12000 | L26: 钻石银烤漆钢板边框、镜面不锈钢、乳白透光板、筒灯
D27: 23 | E27: MB009 | G27: 台 | I27: 8000 | L27: 钻石银烤漆钢板、乳白透光板
D28: 24 | E28: MB010 | G28: 台 | I28: 35000 | L28: 镜面不锈钢、透光软膜
D29: 25 | E29: MB011 | G29: 台 | I29: 38000 | L29: 镜面不锈钢镀黑钛、乳白透光板
D30: 26 | E30: MB012 | G30: 台 | I30: 8000 | L30: 镜面不锈钢、乳白透光板
D31: 27 | E31: MC001 | G31: 支 | I31: 3000 | L31: 不锈钢扁平扶手
D32: 28 | E32: MC002 | G32: 支 | I32: 3000 | L32: 不锈钢圆形扶手
D33: 29 | E33: MC003 | G33: 支 | I33: 3000 | L33: 不锈钢弯管扶手
D34: 30 | E34: MC004 | G34: 支 | I34: 4500 | L34: 不锈钢红木扶手
D35: 31 | E35: MD004 | G35: 台 | I35: 5000 | L35: PVC
D36: 32 | E36: MD005 | G36: 台 | I36: 5000 | L36: PVC
D37: 33 | E37: MD006 | G37: 台 | I37: 5000 | L37: PVC
D38: 34 | E38: MD007 | G38: 台 | I38: 5000 | L38: PVC
D39: 35 | E39: MD008 | G39: 台 | I39: 5000 | L39: PVC
D40: 36 | E40: MD009 | G40: 台 | I40: 3800 | L40: PVC
D41: 37 | E41: MD010 | G41: 台 | I41: 6000 | L41: PVC
D42: 38 | E42: MD011 | G42: 台 | I42: 32000 | L42: 大理石
D43: 39 | E43: MD012 | G43: 台 | I43: 32000 | L43: 大理石
D44: 40 | E44: MD013 | G44: 台 | I44: 後續提供 | L44: PVC
D45: 41 | E45: ME002 | G45: 台 | I45: 0 | L45: 主操纵盘
D46: 42 | E46: ME003 | G46: 台 | I46: 0 | L46: 主操纵盘
D47: 43 | E47: ME005 | G47: 台 | I47: 3800 | L47: 主操纵盘在ME001基础上追加语音呼梯
D48: 44 | E48: ME006 | G48: 台 | I48: 8400 | L48: 侧边一体式操纵盘
D49: 45 | E49: ME007 | G49: 台 | I49: 8600 | L49: 侧边一体式操纵盘在ME006基础上追加盲文点字板
D50: 46 | E50: ME008 | G50: 台 | I50: 8800 | L50: 一体式前侧板用
D51: 47 | E51: ME016 | G51: 台 | I51: 2000 | L51: 在ME001基础上追加电话机键盘
D52: 48 | E52: ME017 | G52: 台 | I52: 2000 | L52: 在ME002基础上追加电话机键盘
D53: 49 | E53: ME018 | G53: 台 | I53: 2000 | L53: 在ME003基础上追加电话机键盘
D54: 50 | E54: MF003 | G54: 停 | I54: 0 | L54: 不锈钢无底盒
D55: 51 | E55: MF004 | G55: 停 | I55: 500 | L55: 并联不锈钢无底盒
D56: 52 | E56: MF005 | G56: 停 | I56: 1500 | L56: 液晶无底盒
D57: 53 | E57: MF006 | G57: 停 | I57: 1500 | L57: 液晶无底盒
D58: 54 | E58: MF010 | G58: 停 | I58: 1000 | L58: 手势呼梯有底盒
D59: 55 | E59: MF013 | G59: 停 | I59: 4200 | L59: 无接触式外呼
D60: 56 | E60: MF021 | G60: 停 | I60: 300 | L60: 无底盒
D61: 57 | E61: MF022 | G61: 停 | I61: 400 | L61: 无底盒带手势呼梯
D62: 58 | E62: MG001 | G62: 停 | I62: 2100
D63: 59 | E63: MG002 | G63: 停 | I63: 2100
D64: 60 | E64: MG003 | G64: 停 | I64: 5500
D65: 61 | E65: MG004 | G65: 停 | I65: 2700
D66: 62 | E66: MG005 | G66: 停 | I66: 3500
D67: 63 | E67: MG006 | G67: 停 | I67: 4500
D68: 64 | E68: MH001 | G68: 停 | I68: 2000
D69: 65 | E69: MH002 | G69: 停 | I69: 1200
D70: 66 | E70: SUS304-1.5t鏡面不銹鋼-1 | F70: 小門框 (標準：噴塗或SH) | G70: 停 | I70: 1500 | L70: SUS304-1.5t鏡面不銹鋼
D71: 67 | E71: SUS304-1.5t鏡面不銹鋼 鍍鈦-1 | G71: 停 | I71: 2500 | L71: SUS304-1.5t鏡面不銹鋼 鍍鈦
D72: 68 | E72: SUS304-1.2t髮紋不銹鋼-1 | F72: 大門框 (無幕板) HH=2100 A=240 | G72: 停 | I72: 10000 | L72: SUS304-1.2t髮紋不銹鋼
D73: 69 | E73: SUS304-1.5t鏡面不銹鋼-2 | G73: 停 | I73: 15000 | L73: SUS304-1.5t鏡面不銹鋼
D74: 70 | E74: SUS304-1.2t髮紋不銹鋼 鍍鈦(黑以外) | G74: 停 | I74: 17000 | L74: SUS304-1.2t髮紋不銹鋼 鍍鈦(黑以外)
D75: 71 | E75: SUS304-1.2t髮紋不銹鋼 鍍鈦(黑) | G75: 停 | I75: 19000 | L75: SUS304-1.2t髮紋不銹鋼 鍍鈦(黑)
D76: 72 | E76: SUS304-1.5t發紋不銹鋼-2 | F76: 層門或轎門2100mm （標準：噴塗或彩粧鋼板） | G76: 停 | I76: 4400 | L76: SUS304-1.5t發紋不銹鋼
D77: 73 | E77: SUS304-1.5t發紋不銹鋼 蝕刻 | G77: 停 | I77: 6100 | L77: SUS304-1.5t發紋不銹鋼 蝕刻
D78: 74 | E78: SUS304-1.5t發紋不銹鋼 鍍鈦-2 | G78: 停 | I78: 8100 | L78: SUS304-1.5t發紋不銹鋼 鍍鈦
D79: 75 | E79: SUS304-1.5t鏡面不銹鋼-3 | G79: 停 | I79: 5500 | L79: SUS304-1.5t鏡面不銹鋼
D80: 76 | E80: SUS304-1.5t鏡面不銹鋼 鍍鈦-3 | G80: 停 | I80: 11000 | L80: SUS304-1.5t鏡面不銹鋼 鍍鈦
D81: 77 | E81: SUS304-1.5t鏡面不銹鋼 蝕刻 | G81: 停 | I81: 8400 | L81: SUS304-1.5t鏡面不銹鋼 蝕刻
D82: 78 | E82: SUS304-1.5t鏡面不銹鋼 蝕刻 鍍鈦 | G82: 停 | I82: 14000 | L82: SUS304-1.5t鏡面不銹鋼 蝕刻 鍍鈦
D83: 79 | E83: 四周包邊玻璃層門SUS304-1.2t發紋不銹鋼 | G83: 停 | I83: 27000 | L83: 四周包邊玻璃層門SUS304-1.2t發紋不銹鋼
D84: 80 | E84: 四周包邊玻璃層門SUS304-1.5t鏡面不銹鋼 | G84: 停 | I84: 36000 | L84: 四周包邊玻璃層門SUS304-1.5t鏡面不銹鋼
D85: 81 | E85: 臨時層門 | F85: 冷軋板噴塗1.2t | G85: 停 | I85: 5100
D86: 82 | E86: 層門或轎門2300mm （標準：噴塗或彩粧鋼板） | F86: SUS304-1.5t發紋不銹鋼 | G86: 停 | I86: 7400
D87: 83 | E87: SUS304-1.5t發紋不銹鋼 P6-P9人 | F87: 轎壁 （前側+左右側+後側+轎門） | G87: 台 | I87: 19000 | L87: SUS304-1.5t發紋不銹鋼 P6~P9人
D88: 84 | E88: SUS304-1.5t發紋不銹鋼 P10-P12人 | G88: 台 | I88: 24000 | L88: SUS304-1.5t發紋不銹鋼 P10~P12人
D89: 85 | E89: SUS304-1.5t發紋不銹鋼 P13-P17人 | G89: 台 | I89: 25500 | L89: SUS304-1.5t發紋不銹鋼 P13~P17人
D90: 86 | E90: SUS304-1.5t發紋不銹鋼 P20-P24人 | G90: 台 | I90: 26500 | L90: SUS304-1.5t發紋不銹鋼 P20~P24人
D91: 87 | E91: SUS304-1.5t發紋不銹鋼 鍍鈦 P6-P9人 | G91: 台 | I91: 55000 | L91: SUS304-1.5t發紋不銹鋼 鍍鈦 P6~P9人
D92: 88 | E92: SUS304-1.5t發紋不銹鋼 鍍鈦 P10-P12人 | G92: 台 | I92: 63000 | L92: SUS304-1.5t發紋不銹鋼 鍍鈦 P10~P12人
D93: 89 | E93: SUS304-1.5t發紋不銹鋼 鍍鈦 P13-P17人 | G93: 台 | I93: 71000 | L93: SUS304-1.5t發紋不銹鋼 鍍鈦 P13~P17人
D94: 90 | E94: SUS304-1.5t發紋不銹鋼 鍍鈦 P20-P24人 | G94: 台 | I94: 86000 | L94: SUS304-1.5t發紋不銹鋼 鍍鈦 P20~P24人
D95: 91 | E95: SUS304-1.5t鏡面不銹鋼 P6-P9人 | G95: 台 | I95: 40000 | L95: SUS304-1.5t鏡面不銹鋼 P6~P9人
D96: 92 | E96: SUS304-1.5t鏡面不銹鋼 P10-P12人 | G96: 台 | I96: 50000 | L96: SUS304-1.5t鏡面不銹鋼 P10~P12人
D97: 93 | E97: SUS304-1.5t鏡面不銹鋼 P13-P17人 | G97: 台 | I97: 51000 | L97: SUS304-1.5t鏡面不銹鋼 P13~P17人
D98: 94 | E98: SUS304-1.5t鏡面不銹鋼 P20-P24人 | G98: 台 | I98: 56000 | L98: SUS304-1.5t鏡面不銹鋼 P20~P24人
D99: 95 | E99: SUS304-1.5t鏡面不銹鋼 鍍鈦 P6-P9人 | G99: 台 | I99: 66000 | L99: SUS304-1.5t鏡面不銹鋼 鍍鈦 P6~P9人
D100: 96 | E100: SUS304-1.5t鏡面不銹鋼 鍍鈦 P10-P12人 | G100: 台 | I100: 76000 | L100: SUS304-1.5t鏡面不銹鋼 鍍鈦 P10~P12人
D101: 97 | E101: SUS304-1.5t鏡面不銹鋼 鍍鈦 P13-P17人 | G101: 台 | I101: 86000 | L101: SUS304-1.5t鏡面不銹鋼 鍍鈦 P13~P17人
D102: 98 | E102: SUS304-1.5t鏡面不銹鋼 鍍鈦 P20-P24人 | G102: 台 | I102: 110000 | L102: SUS304-1.5t鏡面不銹鋼 鍍鈦 P20~P24人
D103: 99 | E103: SUS304-1.5t鏡面不銹鋼 蝕刻 P6-P9人 | G103: 台 | I103: 53000 | L103: SUS304-1.5t鏡面不銹鋼 蝕刻 P6~P9人
D104: 100 | E104: SUS304-1.5t鏡面不銹鋼 蝕刻 P10-P12人 | G104: 台 | I104: 65000 | L104: SUS304-1.5t鏡面不銹鋼 蝕刻 P10~P12人
D105: 101 | E105: SUS304-1.5t鏡面不銹鋼 蝕刻 P13-P17人 | G105: 台 | I105: 66000 | L105: SUS304-1.5t鏡面不銹鋼 蝕刻 P13~P17人
D106: 102 | E106: SUS304-1.5t鏡面不銹鋼 蝕刻 P20-P24人 | G106: 台 | I106: 71000 | L106: SUS304-1.5t鏡面不銹鋼 蝕刻 P20~P24人
D107: 103 | E107: SUS304-1.5t鏡面不銹鋼 蝕刻 鍍鈦 P6-P9人 | G107: 台 | I107: 86000 | L107: SUS304-1.5t鏡面不銹鋼 蝕刻 鍍鈦 P6~P9人
D108: 104 | E108: SUS304-1.5t鏡面不銹鋼 蝕刻 鍍鈦 P10-P12人 | G108: 台 | I108: 100000 | L108: SUS304-1.5t鏡面不銹鋼 蝕刻 鍍鈦 P10~P12人
D109: 105 | E109: SUS304-1.5t鏡面不銹鋼 蝕刻 鍍鈦 P13-P17人 | G109: 台 | I109: 105000 | L109: SUS304-1.5t鏡面不銹鋼 蝕刻 鍍鈦 P13~P17人
D110: 106 | E110: SUS304-1.5t鏡面不銹鋼 蝕刻 鍍鈦 P20-P24人 | G110: 台 | I110: 113000 | L110: SUS304-1.5t鏡面不銹鋼 蝕刻 鍍鈦 P20~P24人
D111: 107 | E111: 車廂特殊裝潢 （標準：SUS304-1.5t發紋不銹鋼，淨高：2300） | F111: 3側板中間片鏡面不銹鋼SUS304-1.5t， 其中後側板鏡面不銹鋼SUS304-1.5t需及閘同寬 | G111: 台 | I111: 20000
D112: 108 | E112: 轎廂淨高加高200（含加重） （標準：SUS304-1.5t發紋不銹鋼，淨高：2300） | F112: SUS304-1.5t發紋不銹鋼 | G112: 台 | I112: 18000
D113: 109 | E113: SUS304-1.5t-1 | F113: 貫通門-轎廂（轎門標準SUS304-1.5t） | G113: 台 | I113: 85000 | L113: SUS304-1.5t
D114: 110 | E114: 冷軋板噴塗1.5t-1 | G114: 台 | I114: 80000 | L114: 冷軋板噴塗1.5t
D115: 111 | E115: 冷軋板噴塗1.5t-2 | F115: 貫通門-乘場（層門門框標準Q235A-1.5t） | G115: 停 | I115: 7500 | L115: 冷軋板噴塗1.5t
D116: 112 | E116: SUS304-1.5t-2 | G116: 停 | I116: 15000 | L116: SUS304-1.5t
D117: 113 | E117: 二合一光幕(標準門高2100) （光幕+安全履） | G117: 台 | I117: 10000
D118: 114 | E118: 紫外線殺菌燈（型號：TL-16W） | G118: 個 | I118: 5100
D119: 115 | E119: 兩台聯動控制 | G119: 組 | I119: 6000
D120: 116 | E120: 對重附安全鉗 P8-P15 | G120: 組 | I120: 40000
D121: 117 | E121: 對重附安全鉗 P17 | G121: 組 | I121: 60000
D122: 118 | E122: 對重附安全鉗 P24 | G122: 組 | I122: 70000
D123: 119 | E123: 火災控制 | F123: MBT-FIRE-A | G123: 台 | I123: 3000
D124: 120 | E124: 井道頂部追加防沖梁 | G124: 台 | I124: 6500
D125: 121 | E125: 風扇出風口 | G125: 台 | I125: 1500
D126: 122 | E126: SHARP清淨機（臺灣） | G126: 台 | I126: 39000
D127: 123 | E127: 第二年起空氣清淨器 保養保固費用 | F127: 每兩年要換除菌離子產生模組 | G127: 組 | I127: 7600
D128: 124 | E128: 冷氣（臺灣） | G128: 套 | I128: 55000
D129: 125 | E129: 第二年起冷氣,保養保固費用 | G129: 組 | I129: 12000
D130: 126 | E130: 副操作盤 | G130: 套 | I130: 13000
D131: 127 | E131: 語音合成裝置 | F131: 語音報站器 | G131: 套 | I131: 4000
D132: 128 | E132: 停機操作 | G132: 套 | I132: 500
D133: 129 | E133: 滿載直駛 | F133: 操作盤檢修增加直駛開關非標加價 | G133: 套 | I133: 2500
D134: 130 | E134: 能量回饋 | G134: 套 | I134: 34000
D135: 131 | E135: CCTV配線預留 | G135: 套 | I135: 11000
D136: 132 | E136: 車廂預留刷卡機接點 | G136: 套 | I136: 10000
D137: 133 | E137: 無線遠端對講系統 | G137: 套 | I137: 7500
D138: 134 | E138: 火警受信運轉 | F138: WL432 | G138: 套 | I138: 6000
D139: 135 | E139: 緊急用功能 | G139: 套 | I139: 14000
D140: 136 | E140: 殘障電梯(殘障OPB、殘障IND、殘障扶手、後側鏡面、語音合成) | G140: 套 | I140: 30000
D141: 137 | E141: 殘障電梯功能 | G141: 停 | I141: 1600
D142: 138 | E142: ARD | G142: 套 | I142: 37000
D143: 139 | E143: 人脸识别 | G143: 套 | I143: 65000
D144: 140 | E144: 刷卡機系統 | F144: MCTC-IC-A2 | G144: 套 | I144: 11000
D145: 141 | E145: 多媒體屏 | F145: 13寸（僅靜態圖片播放） | G145: 套 | I145: 50000
D146: 142
B147: 3C9200 | C147: P | D147: 143 | E147: 客貨用(PF梯) W≦1/4荷重 | F147: 單次載貨重≦1/4荷重 | G147: 台 | H147: 8900 | I147: 8500 | J147: =H147-I147 -> 400 | K147: =IF(I147>0,(H147-I147)/I147,-(H147-I147)/I147) -> 0.04705882353 | L147: 1.僅FLOOR強度結構配合. 2.不含SILL&地板材質變更.
D148: 144 | E148: 無 | H148: 0 | I148: =0 -> 0
B149: 3F3000 | C149: F | D149: 145 | E149: 單次載貨重 (W≦1/2荷重) | F149: F-1000~2000kg | G149: 台 | H149: 7400 | I149: 7200 | J149: =H149-I149 -> 200 | K149: =IF(I149>0,(H149-I149)/I149,-(H149-I149)/I149) -> 0.02777777778
B150: 3F3200 | C150: F | D150: 146 | E150: 單次載貨重 (W＞1/2荷重)-1 | F150: F-1000kg | G150: 台 | H150: 9700 | I150: 9400 | J150: =H150-I150 -> 300 | K150: =IF(I150>0,(H150-I150)/I150,-(H150-I150)/I150) -> 0.03191489362
B151: 3F3300 | C151: F | D151: 147 | E151: 單次載貨重 (W＞1/2荷重)-2 | F151: F-1500kg | G151: 台 | H151: 14200 | I151: 13800 | J151: =H151-I151 -> 400 | K151: =IF(I151>0,(H151-I151)/I151,-(H151-I151)/I151) -> 0.02898550725
B152: 3F3400 | C152: F | D152: 148 | E152: 單次載貨重 (W＞1/2荷重)-3 | F152: F-2000kg | G152: 台 | H152: 27800 | I152: 27100 | J152: =H152-I152 -> 700 | K152: =IF(I152>0,(H152-I152)/I152,-(H152-I152)/I152) -> 0.0258302583
D153: 149
B154: 7C7700 | C154: P | D154: 150 | E154: ≧24L 加計(台)(任何速度) | F154: 採60C鐵芯CABLE | G154: 台 | H154: 53700 | I154: 53200 | J154: =H154-I154 -> 500 | K154: =IF(I154>0,(H154-I154)/I154,-(H154-I154)/I154) -> 0.009398496241 | L154: 1.鐵芯CABLE:採60C鐵芯CABLE
B155: 7C7800 | C155: P | D155: 151 | E155: ≧24L 加計(樓)(任何速度) | F155: 採60C鐵芯CABLE | G155: 樓 | H155: 2900 | I155: 2700 | J155: 200 | K155: 0.07407407407
B156: 3C7600 | C156: P | D156: 152 | E156: COMP CHAIN (台)-1 | F156: P8~P11人 (60m 10停) | G156: 台 | H156: 13700 | I156: 13500 | J156: 200 | K156: 0.01481481481 | L156: 1.適用:行程≧30m以上加計 2.60m≧10停以上加計(90.105m MI已內含) 3.(例) P15*12-CO60 ⊕17,800/台+ 1,400/停*2停=⊕20,600/台
B157: 3C7700 | C157: P | D157: 153 | E157: COMP CHAIN (樓)-1 | F157: ± 1停 (P8~P11 60m) | G157: 樓 | H157: 900 | I157: 900 | J157: 0 | K157: 0
B158: 3C7800 | C158: P | D158: 154 | E158: COMP CHAIN (台)-2 | F158: P12~P17人 (60m 10停) | G158: 台 | H158: 17800 | I158: 17600 | J158: 200 | K158: 0.01136363636
B159: 3C7900 | C159: P | D159: 155 | E159: COMP CHAIN (樓)-2 | F159: ± 1停 (P12~P17 60m) | G159: 樓 | H159: 1400 | I159: 1400 | J159: 0 | K159: 0
B160: 3C8000 | C160: P | D160: 156 | E160: COMP CHAIN (台)-3 | F160: P20~P24人 (60m 10停) | G160: 台 | H160: 23600 | I160: 23300 | J160: 300 | K160: 0.01287553648
B161: 3C8100 | C161: P | D161: 157 | E161: COMP CHAIN (樓)-3 | F161: ± 1停 (P20~P24 60m) | G161: 樓 | H161: 2200 | I161: 2200 | J161: 0 | K161: 0
B162: 3B0700 | C162: B | D162: 158 | E162: COMP CHAIN (台)-4 | F162: B-750~1000kg(45~60m 10停) | G162: 台 | H162: 17700 | I162: 17500 | J162: 200 | K162: 0.01142857143 | L162: 1.適用:行程≧30m以上加計 2.≧10停以上加計
B163: 3B0750 | C163: B | D163: 159 | E163: COMP CHAIN (樓)-4 | F163: B-750~1000kg +1停 | G163: 樓 | H163: 1400 | I163: 1400 | J163: 0 | K163: 0
B164: 3F2000 | C164: F | D164: 160 | E164: COMP CHAIN (台)-5 | F164: F-1000~2000kg(45~60m 10停) | G164: 台 | H164: 17800 | I164: 17600 | J164: 200 | K164: 0.01136363636 | L164: 1.適用:行程≧30m以上加計 2.≧10停以上加計
B165: 3F2100 | C165: F | D165: 161 | E165: COMP CHAIN (樓)-5 | F165: F-1000~2000kg +1停 | G165: 樓 | H165: 2100 | I165: 2100 | J165: 0 | K165: 0
B166: 3F2200 | C166: F | D166: 162 | E166: COMP CHAIN (台)-6 | F166: F-2500~3000kg(45~60m 10停) | G166: 台 | H166: 23500 | I166: 23300 | J166: 200 | K166: 0.008583690987 | L166: 1.適用:行程≧30m以上加計 2.≧10停以上加計
B167: 3F2300 | C167: F | D167: 163 | E167: COMP CHAIN (樓)-6 | F167: F-2500~3000kg +1停 | G167: 樓 | H167: 2100 | I167: 2100 | J167: 0 | K167: 0
D168: 164
B169: 4C3000 | C169: P | D169: 165 | E169: 2P-CO→2S-2P(台) | F169: P6~24人(OP≦1100) | G169: 台 | H169: 10400 | I169: 7200 | J169: =H169-I169 -> 3200 | K169: =IF(I169>0,(H169-I169)/I169,-(H169-I169)/I169) -> 0.4444444444 | L169: 標準仕樣: 標準OP*EH-2100 門框AS-1X(SH),出入口門(IP)
B170: 4C3100 | C170: P | D170: 166 | E170: 2P-CO→2S-2P(停) | F170: P6~24人(OP≦1100) | G170: 停 | H170: 5400 | I170: 7800 | J170: -2400 | K170: -0.3076923077
B171: 3C5000 | C171: P | D171: 167 | E171: 千鳥型(EAS人乘需另加計CWT側落)-1 | F171: P9人 | G171: 台 | H171: 128900 | I171: 120600 | J171: 8300 | K171: 0.0688225539 | L171: 不含RAIL跳級,含帶鎖門刀追加
B172: 3C5100 | C172: P | D172: 168 | E172: 千鳥型(EAS人乘需另加計CWT側落)-2 | F172: P10~P11人 | G172: 台 | H172: 157500 | I172: 151500 | J172: 6000 | K172: 0.0396039604 | L172: 含CAGE RAIL:T-8K→T-13K,含帶鎖門刀追加
B173: 3C5200 | C173: P | D173: 169 | E173: 千鳥型(EAS人乘需另加計CWT側落)-3 | F173: P12~P15人 | G173: 台 | H173: 139200 | I173: 131400 | J173: 7800 | K173: 0.05936073059 | L173: 含CWT RAIL:T-5K→T-8K,,含帶鎖門刀追加
B174: 3C5300 | C174: P | D174: 170 | E174: 千鳥型(EAS人乘需另加計CWT側落)-4 | F174: P17~P24人 | G174: 台 | H174: 128900 | I174: 120600 | J174: 8300 | K174: 0.0688225539 | L174: 不含RAIL跳級,含帶鎖門刀追加
B175: 3C5050 | C175: P | D175: 171 | E175: L型千鳥(其他相關需另計)-1 | F175: P9人 | G175: 台 | H175: 282700 | I175: 268500 | J175: =H175-I175 -> 14200 | K175: 0.05288640596 | L175: 報價不含2S-2P,CWT側落式,需以OPTION另計 報價含帶鎖門刀追加 P9人:含RAIL 8K*5K→8K*8K(10停) P10~P11人:含RAIL 8K*5K→13K*8K(10停) P12~P15人:含RAIL 13K*5K→13K*8K(10停)
B176: 3C5150 | C176: P | D176: 172 | E176: L型千鳥(其他相關需另計)-2 | F176: P10~P11人 | G176: 台 | H176: 314900 | I176: 302000 | J176: =H176-I176 -> 12900 | K176: 0.04271523179
B177: 3C5250 | C177: P | D177: 173 | E177: L型千鳥(其他相關需另計)-3 | F177: P12~P15人 | G177: 台 | H177: 297400 | I177: 283300 | J177: =H177-I177 -> 14100 | K177: 0.04977056124
B178: 3B0800 | C178: B | D178: 174 | E178: 千鳥型&THROUGH | F178: B-750~1000kg | G178: 台 | H178: 157900 | I178: 148300 | J178: 9600 | K178: 0.06473364801 | L178: 1.含車廂出入口配合&立組工時追加 2.含SUB OPB等電氣品追加 (RAIL不跳級計)
B179: 4F3000 | C179: F | D179: 175 | E179: 千鳥型-1 | F179: F-1000kg~2000kg | G179: 台 | H179: 135400 | I179: 129100 | J179: 6300 | K179: 0.04879938033
B180: 4F3100 | C180: F | D180: 176 | E180: 千鳥型-2 | F180: F-2500kg~3000kg | G180: 台 | H180: 179400 | I180: 170800 | J180: =H180-I180 -> 8600 | K180: 0.05035128806
B181: B00100 | C181: P.B | D181: 177 | E181: 出入口防落網(UAS1-06千鳥選用) | F181: 2*樓數-停數 | G181: 停 | H181: 5400 | I181: 5400 | J181: 0 | K181: 0 | L181: UAS1-06千鳥無法規劃帶鎖門刀
B182: Y24700 | C182: F | D182: 178 | E182: 出入口防落板(F梯千鳥選用) (以施作面積M²計算加價) | F182: {(行程*2)-[(停數-1)* (EH+0.4)]}*(OP+0.1) *1000元/M² | G182: M² | H182: 1000 | I182: 1000 | J182: =H182-I182 -> 0 | K182: 0 | L182: 1.{(行程*2)- [(停數-1)*(EH+0.4)]}*(OP+0.1)*1000元/M² 2.加價1000元為防落板面積每平方公尺施作費用
D183: 179
A184: 新增 | B184: 3C9450 | C184: P | D184: 180 | E184: GUIDE SHOE→GUIDE ROLLER | F184: EAS-P8~24人 | G184: 台 | H184: 57200 | J184: =H184-I184 -> 57200 | K184: =IF(I184>0,(H184-I184)/I184,-(H184-I184)/I184) -> 
D185: 181
B186: 7C0100 | C186: P.B.F | D186: 182 | E186: DUP (2台聯動) | G186: 群 | H186: 6800 | I186: 6800 | J186: =H186-I186 -> 0 | K186: =IF(I186>0,(H186-I186)/I186,-(H186-I186)/I186) -> 0 | L186: 配賦予聯動第1台,而聯動第2台不配賦.
B187: 7C0200 | C187: P.B | D187: 183 | E187: FT-2 群管理 (3~8台/群) | F187: 3~8台群管理(無群管理盤) | G187: 群 | H187: 53400 | I187: 51400 | J187: =H187-I187 -> 2000 | K187: =IF(I187>0,(H187-I187)/I187,-(H187-I187)/I187) -> 0.03891050584 | L187: 配賦於NO.1號機,另IND應採HALL-LANT,費用另計 2.IND應採HALL-LANT,費用另計
B188: 7C0400 | C188: P | D188: 184 | E188: 群管理切離1台單獨運轉 | G188: 台 | H188: 8900 | I188: 8800 | J188: =H188-I188 -> 100 | K188: =IF(I188>0,(H188-I188)/I188,-(H188-I188)/I188) -> 0.01136363636 | L188: 僅配賦予切離號機.
D189: 185
B190: 7C6900 | C190: P | D190: 186 | E190: EAS電源電壓380V(控盤對應) | F190: EAS-P6~P11人(60m) | G190: 台 | H190: 5300 | I190: 4600 | J190: =H190-I190 -> 700 | K190: =IF(I190>0,(H190-I190)/I190,-(H190-I190)/I190) -> 0.152173913
B191: 7C6950 | C191: P | D191: 187 | E191: EAS電源電壓220V(主機,控盤對應) | F191: EAS-P8~P11人(90m) | G191: 台 | H191: 23900 | I191: 18400 | J191: 5500 | K191: =IF(I191>0,(H191-I191)/I191,-(H191-I191)/I191) -> 0.2989130435 | L191: 主機以大(GSD-MM)代小(GSD-MM1)
B192: 7C7300 | C192: P | D192: 188 | E192: 電源電壓380V(扣除TRANS 7KVA) | F192: VAG-P6~15人(60m) | G192: 台 | H192: -21600 | I192: -21000 | J192: -600 | K192: =IF(I192>0,(H192-I192)/I192,-(H192-I192)/I192) -> -0.02857142857 | L192: 扣除降壓TRANS.(MI已內附加計7KVA TRANS)
B193: 7C7350 | C193: P | D193: 189 | E193: 電源電壓220V(追加TRANS 12KVA) | F193: VAG-P8~P15人(90,105m) | G193: 台 | H193: 37200 | I193: 33300 | J193: 3900 | K193: 0.1171171171 | L193: 追加昇壓TRANS:容量12KVA
B194: 7C7400 | C194: P.B.F | D194: 190 | E194: 追加能源回饋裝置 (Regen 11KW)-1 | F194: EAS-P12~P24人(60m) | G194: 台 | H194: 43700 | I194: 37900 | J194: 5800 | K194: 0.1530343008
B195: 7C7410 | C195: P.B.F | D195: 191 | E195: 追加能源回饋裝置 (Regen 11KW)-2 | F195: EAS-P8~P15人(90,105m) | G195: 台 | H195: 43700 | I195: 37900 | J195: 5800 | K195: 0.1530343008
B196: 7C7420 | C196: P.B.F | D196: 192 | E196: 追加能源回饋裝置 (Regen 22KW)-1 | F196: EAS-P17~P20人(90,105m) | G196: 台 | H196: 55900 | I196: 48500 | J196: 7400 | K196: 0.1525773196
B197: 7C7430 | C197: P.B.F | D197: 193 | E197: 追加能源回饋裝置 (Regen 22KW)-2 | F197: EAS-P13~P17人(120m) | G197: 台 | H197: 55900 | I197: 48500 | J197: 7400 | K197: 0.1525773196
B198: 7C7440 | C198: P.B.F | D198: 194 | E198: 追加能源回饋裝置 (Regen 22KW)-3 | F198: EAS-P13~P17人(150m) | G198: 台 | H198: 55900 | I198: 48500 | J198: 7400 | K198: 0.1525773196
B199: G02300 | C199: P.B.F | D199: 195 | E199: 變相器借用費用(含運費)-1 | G199: 台 | H199: 7700 | I199: 7700 | J199: 0 | K199: 0
B200: F03800 | C200: P.B.F | D200: 196 | E200: 變壓器借用費用(含運費)-2 | G200: 台 | H200: 7700 | I200: 7700 | J200: 0 | K200: 0
B201: 7F1100 | C201: F | D201: 197 | E201: 電源電壓220V(追加TRANS 20KVA) | F201: F-1500kg~2000kg | G201: 台 | H201: 36500 | I201: 33100 | J201: 3400 | K201: 0.1027190332
B202: 7F1200 | C202: F | D202: 198 | E202: 電源電壓220V(追加TRANS 25KVA) | F202: F-2500kg~3000kg | G202: 台 | H202: 52200 | I202: 51300 | J202: 900 | K202: 0.01754385965
... 1802 more rows

Sheet 附表一
A1: 附 表 一
A3: 1 | B3: 型式（Type Form） | C3: : | D3: MAH100 - 6 * 5- 2S45 * 1 台
A4: 2 | B4: 載重（Load/Passenger） | C4: : | D4: 450 公斤/ 6 人
A5: 3 | B5: 停止樓數（No. of Stop） | C5: : | D5: 5 停／ 5 樓（ 1 - 4F,RF)（No.1-2 )
A6: 4 | B6: 速度（Speed） | C6: : | D6: 45m/min
A7: 5 | B7: 控制方式（Control） | C7: : | D7: 交流變壓變頻選擇性集合式控制
A8: 6 | B8: 電源（Power Source） | C8: : | D8: 動力用交流單相，220伏特，60Hz
A9: 7 | B9: 出人口門框（Jamb） | C9: : | D9: 狹窄型門框：1-4F 髮紋不銹鋼(連體式)
D10: 大型門框：RF採一體刑大框(SH-HL製)
A12: 8 | B12: 出人口門（Hatch Door） | C12: : | D12: 二片單邊側開式
A15: 9 | B15: 出人口寬度（Opening） | C15: : | D15: 800mm×2100 mm（W*H)
A16: 10 | B16: 出人口指示燈及按鈕（Hall Indicator&Button）：MF001
A17: 11 | B17: 梯廂型號（Cage） | C17: : | D17: MA019
D18: a.、天花板型式（Ceiling Type） | F18: : | G18: MB014
D19: b、側板（Enclosure Wall) | F19: : | G19: 前側：SUS-HL
G20: 兩側：彩妝鋼板+鏡面不鏽鋼，配置方式同MA019
G21: 後側：彩妝鋼板+鏡面不鏽鋼，配置方式同MA019
D22: c、廂門（Cage Door) | F22: : | G22: 彩妝鋼板
D23: d、地板（Flooring) | F23: : | G23: PVC地板
D24: e、換氣（Ventilation) | F24: : | G24: 天花板扇（Ceiling Fan)
D25: f、操作盤（Operating Panel） | F25: : | G25: ME017
A26: 12 | B26: 警報方式（Alarm） | C26: : | D26: g、梯廂位置指示器（Car Position Indicator)：附於OPB上
D27: 電鈴及對講機（Bell & Interphone）
A28: 13 | B28: 升降路尺寸及各層樓高度（Hoist Way & Each Floor Height）：依計劃圖（As Per Layout Drawing）
A29: 14 | B29: 其他（Other） | C29: : | D29: A、ARD停電自動復歸最近樓層
D30: B、附戶開延遲按鈕一只
D31: C、錯誤叫車取消功能
D32: D、扶手MC005
D33: E、紅外線光幕

Sheet 小電梯型錄選配加價報價
A1: 序號 | B1: 名稱 | C1: 編號 | D1: 圖示 | E1: 備註 | F1: 配置 | G1: 單位 | H1: 定價
A2: =ROW()-1 -> 1 | B2: 轎廂 | C2: MA017 | E2: 吊頂：MB010(RAL9005砂紋+乳白透光板) 兩側側板：烤漆RAL9003砂紋+鏡面不銹鋼鍍黑鈦 後側側板：烤漆RAL9003砂紋+鏡面不銹鋼鍍黑鈦 前側側板：烤漆RAL9003砂紋 轎門：烤漆RAL9003砂紋 地板：PVC(MD005) | F2: 選配 | G2: 台 | H2: 26000
A3: =ROW()-1 -> 2 | C3: MA018 | E3: 吊頂：MB013(RAL9003砂紋+LED燈板) 兩側側板：烤漆RAL9005砂紋+烤漆RAL9003砂紋+ 鏡面不銹鋼鍍黑鈦 後側側板：烤漆RAL9003砂紋+鏡面不銹鋼鍍黑鈦 前側側板：烤漆RAL9003砂紋 轎門：烤漆RAL9003砂紋 地板：PVC(MD005) | F3: 選配 | G3: 台 | H3: 10000
A4: 3 | C4: MA019 | E4: 吊頂：MB014(RAL9003砂紋+LED燈板) 兩側側板：彩妝鋼板ML002+鏡面不銹鋼 後側側板：彩妝鋼板ML002+鏡面不銹鋼 前側側板：發紋不銹鋼 轎門：彩妝鋼板ML002 地板：PVC(MD006) | F4: 標配 | G4: 台 | H4: 0
A5: 4 | C5: MA020 | E5: 吊頂：MB015(烤漆RAL1015+烤漆RAL9005+ LED方燈) 兩側側板：彩妝鋼板ML006 後側側板：彩妝鋼板ML006+鏡面飾條 前側側板：發紋不銹鋼 轎門：彩妝鋼板ML006 地板：PVC(MD001) | F5: 標配 | G5: 台 | H5: 0
A6: 5 | C6: MA021 | E6: 吊頂：MB011(鏡面不銹鋼鍍黑鈦+乳白透光板) 兩側側板：鏡面不銹鋼鍍黑鈦+蝕刻香檳金鍍色 後側側板：鏡面不銹鋼鍍黑鈦+蝕刻香檳金鍍色 前側側板：鏡面不銹鋼鍍黑鈦 轎門：鏡面不銹鋼鍍黑鈦 地板：PVC(MD006) | F6: 選配 | G6: 台 | H6: 57000
A7: 6 | B7: 天井 | C7: MB010 | E7: 烤漆、乳白透光板 | F7: 選配 | G7: 台 | H7: 35000
A8: 7 | C8: MB011 | E8: 鏡面不銹鋼鍍黑鈦、乳白透光板 | F8: 選配 | G8: 台 | H8: 21000
A9: 8 | B9: 扶手 | C9: MC002 | E9: 不銹鋼圓形扶手 | F9: 選配 | G9: 支 | H9: 3000
A10: 9 | C10: MC004 | E10: 不銹鋼紅木扶手 | F10: 選配 | G10: 支 | H10: 3000
A11: 10 | C11: MC005 | E11: 鏡面黑鈦扶手 | F11: 選配 | G11: 支 | H11: 3000
A12: 11 | C12: ME017 | E12: 在ME002基礎上追加電話機鍵盤 | F12: 選配 | G12: 台 | H12: 3000
A13: 12 | C13: ME018 | E13: 在ME003基礎上追加電話機鍵盤 | F13: 選配 | G13: 台 | H13: 3000
A14: 13 | C14: MF003 | E14: 不銹鋼無底盒 | F14: 選配 | G14: 停 | H14: 1000
A15: 14 | C15: MF006 | E15: 液晶無底盒 | F15: 選配 | G15: 停 | H15: 1500

Sheet 客梯型录选配加价报价
A1: 序号 | B1: 名称 | C1: 编号 | D1: 备注 | E1: 單位 | F1: 配置 | G1: 定價
A2: =ROW()-1 -> 1 | B2: 車廂 | C2: MA005 | E2: 台 | F2: 选配 | G2: 15000
A3: =ROW()-1 -> 2 | C3: MA006 | E3: 台 | F3: 选配 | G3: 90000
A4: 3 | C4: MA007 | E4: 台 | F4: 选配 | G4: 33600
A5: 4 | C5: MA008 | E5: 台 | F5: 选配 | G5: 135000
A6: 5 | B6: 天井 | C6: MB005 | D6: 钻石银烤漆钢板边框、发纹不锈钢、乳白透光板、筒灯 | E6: 台 | F6: 选配 | G6: 9500
A7: 6 | C7: MB006 | D7: 镜面不锈钢、乳白透光板 | E7: 台 | F7: 选配 | G7: 9000
A8: 7 | C8: MB007 | D8: 黑色烤漆钢板边框、黑钛镜面不锈钢、乳白透光板、筒灯 | E8: 台 | F8: 选配 | G8: 12000
A9: 8 | C9: MB008 | D9: 钻石银烤漆钢板边框、镜面不锈钢、乳白透光板、筒灯 | E9: 台 | F9: 选配 | G9: 12000
A10: 9 | C10: MB009 | D10: 钻石银烤漆钢板、乳白透光板 | E10: 台 | F10: 选配 | G10: 8000
A11: 10 | C11: MB010 | D11: 镜面不锈钢、透光软膜 | E11: 台 | F11: 选配 | G11: 35000
A12: 11 | C12: MB011 | D12: 镜面不锈钢镀黑钛、乳白透光板 | E12: 台 | F12: 选配 | G12: 38000
A13: 12 | C13: MB012 | D13: 镜面不锈钢、乳白透光板 | E13: 台 | F13: 标配 | G13: 8000
A14: 13 | B14: 扶手 | C14: MC001 | D14: 不锈钢扁平扶手 | E14: 支 | F14: 选配 | G14: 3000
A15: 14 | C15: MC002 | D15: 不锈钢圆形扶手 | E15: 支 | F15: 选配 | G15: 3000
A16: 15 | C16: MC003 | D16: 不锈钢弯管扶手 | E16: 支 | F16: 选配 | G16: 3000
A17: 16 | C17: MC004 | D17: 不锈钢红木扶手 | E17: 支 | F17: 选配 | G17: 4500
A18: 17 | B18: 地板 | C18: MD004 | D18: PVC | E18: 台 | F18: 选配 | G18: 5000
A19: 18 | C19: MD005 | D19: PVC | E19: 台 | F19: 选配 | G19: 5000
A20: 19 | C20: MD006 | D20: PVC | E20: 台 | F20: 选配 | G20: 5000
A21: 20 | C21: MD007 | D21: PVC | E21: 台 | F21: 选配 | G21: 5000
A22: 21 | C22: MD008 | D22: PVC | E22: 台 | F22: 选配 | G22: 5000
A23: 22 | C23: MD009 | D23: PVC | E23: 台 | F23: 选配 | G23: 3800
A24: 23 | C24: MD010 | D24: PVC | E24: 台 | F24: 选配 | G24: 6000
A25: 24 | C25: MD011 | D25: 大理石 | E25: 台 | F25: 选配 | G25: 32000
A26: 25 | C26: MD012 | D26: 大理石 | E26: 台 | F26: 选配 | G26: 32000
A27: 26 | C27: MD013 | D27: PVC | E27: 台 | F27: 选配 | G27: 後續提供
A28: 27 | B28: 操纵盘 | C28: ME002 | D28: 主操纵盘 | E28: 台 | F28: 选配 | G28: 0
A29: 28 | C29: ME003 | D29: 主操纵盘 | E29: 台 | F29: 选配 | G29: 0
A30: 29 | C30: ME005 | D30: 主操纵盘在ME001基础上追加语音呼梯 | E30: 台 | F30: 选配 | G30: 3800
A31: 30 | C31: ME006 | D31: 侧边一体式操纵盘 | E31: 台 | F31: 选配 | G31: 8400
A32: 31 | C32: ME007 | D32: 侧边一体式操纵盘在ME006基础上追加盲文点字板 | E32: 台 | F32: 选配 | G32: 8600
A33: 32 | C33: ME008 | D33: 一体式前侧板用 | E33: 台 | F33: 选配 | G33: 8800
A34: 33 | C34: ME016 | D34: 在ME001基础上追加电话机键盘 | E34: 台 | F34: 选配 | G34: 2000
A35: 34 | C35: ME017 | D35: 在ME002基础上追加电话机键盘 | E35: 台 | F35: 选配 | G35: 2000
A36: 35 | C36: ME018 | D36: 在ME003基础上追加电话机键盘 | E36: 台 | F36: 选配 | G36: 2000
A37: 36 | B37: IND | C37: MF003 | D37: 不锈钢无底盒 | E37: 停 | F37: 选配 | G37: 0
A38: 37 | C38: MF004 | D38: 并联不锈钢无底盒 | E38: 停 | F38: 选配 | G38: 500
A39: 38 | C39: MF005 | D39: 液晶无底盒 | E39: 停 | F39: 选配 | G39: 1500
A40: 39 | C40: MF006 | D40: 液晶无底盒 | E40: 停 | F40: 选配 | G40: 1500
A41: 40 | C41: MF010 | D41: 手势呼梯有底盒 | E41: 停 | F41: 选配 | G41: 1000
A42: 41 | C42: MF013 | D42: 无接触式外呼 | E42: 停 | F42: 选配 | G42: 4200
A43: 42 | C43: MF021 | D43: 无底盒 | E43: 停 | F43: 选配 | G43: 300
A44: 43 | C44: MF022 | D44: 无底盒带手势呼梯 | E44: 停 | F44: 选配 | G44: 400
A45: 44 | B45: 到站灯 | C45: MG001 | E45: 停 | F45: 选配 | G45: 2100
A46: 45 | C46: MG002 | E46: 停 | F46: 选配 | G46: 2100
A47: 46 | C47: MG003 | E47: 停 | F47: 选配 | G47: 5500
A48: 47 | C48: MG004 | E48: 停 | F48: 选配 | G48: 2700
A49: 48 | C49: MG005 | E49: 停 | F49: 选配 | G49: 3500
A50: 49 | C50: MG006 | E50: 停 | F50: 选配 | G50: 4500
A51: 50 | B51: 横显 | C51: MH001 | E51: 停 | F51: 选配 | G51: 2000
A52: 51 | C52: MH002 | E52: 停 | F52: 选配 | G52: 1200

Sheet 客梯保養價格表
A1: 永佳捷保養價格表(客梯)
A2: 保養種類 | B2: 60米/分-半包(1次/月) | F2: 90-105米/分-半包(1次/月)
A3: 樓層/人乘 | B3: 6-8人 | C3: 10人 | D3: 15人 | E3: 20人 | F3: 8人 | G3: 10人 | H3: 15人 | I3: 20人
A4: 5f | B4: 2550 | C4: 2720 | D4: 3145 | E4: 3570
A5: 6F | B5: =SUM(B4+170) -> 2720 | C5: =SUM(C4+170) -> 2890 | D5: =SUM(D4+170) -> 3315 | E5: =SUM(E4+170) -> 3740
A6: 7F | B6: =SUM(B5+170) -> 2890 | C6: 3060 | D6: 3485 | E6: 3910
A7: 8F | B7: 3060 | C7: 3230 | D7: 3655 | E7: 4080
A8: 9F | B8: 3230 | C8: 3400 | D8: 3825 | E8: 4250 | F8: 4250 | G8: 4590 | H8: 5440 | I8: 6290
A9: 10F | B9: 3400 | C9: 3570 | D9: 3995 | E9: 4420 | F9: =SUM(F8+255) -> 4505 | G9: =SUM(G8+255) -> 4845 | H9: =SUM(H8+255) -> 5695 | I9: =SUM(I8+255) -> 6545
A10: 11F | B10: 3570 | C10: 3740 | D10: 4165 | E10: 4590 | F10: =SUM(F9+255) -> 4760 | G10: 5100 | H10: =SUM(H9+255) -> 5950 | I10: =SUM(I9+255) -> 6800
A11: 12F | B11: 3740 | C11: 3910 | D11: 4335 | E11: 4760 | F11: 5015 | G11: 5355 | H11: 6205 | I11: 7055
A12: 13F | B12: 3910 | C12: 4080 | D12: 4505 | E12: 4930 | F12: 5270 | G12: 5610 | H12: 6460 | I12: 7310
A13: 14F | B13: 4080 | C13: 4250 | D13: 4675 | E13: 5100 | F13: 5525 | G13: 5865 | H13: 6715 | I13: 7565
A14: 15F | B14: 4250 | C14: 4420 | D14: 4845 | E14: 5270 | F14: 5780 | G14: 6120 | H14: 6970 | I14: 7820
A15: 16F | B15: 4420 | C15: 4590 | D15: 5015 | E15: 5440 | F15: 6035 | G15: 6375 | H15: 7225 | I15: 8075
A16: 17F | B16: 4590 | C16: 4760 | D16: 5185 | E16: 5610 | F16: 6290 | G16: 6630 | H16: 7480 | I16: 8330
A17: 18F | B17: 4760 | C17: 4930 | D17: 5355 | E17: 5780 | F17: 6545 | G17: 6885 | H17: 7735 | I17: 8585
A18: 19F | B18: 4930 | C18: 5100 | D18: 5525 | E18: 5950 | F18: 6800 | G18: 7140 | H18: 7990 | I18: 8840
A19: 20F | B19: 5100 | C19: 5270 | D19: 5695 | E19: 6120 | F19: 7055 | G19: 7395 | H19: 8245 | I19: 9095
A20: 21F | B20: 5270 | C20: 5440 | D20: 5865 | E20: 6290 | F20: 7310 | G20: 7650 | H20: 8500 | I20: 9350
A21: 22F | B21: 5440 | C21: 5610 | D21: 6035 | E21: 6460 | F21: 7565 | G21: 7905 | H21: 8755 | I21: 9605
A22: 23F | B22: =SUM(B21+170) -> 5610 | C22: 5780 | D22: 6205 | E22: 6630 | F22: 7820 | G22: 8160 | H22: 9010 | I22: 9860
A23: 24F | B23: 5780 | C23: 5950 | D23: 6375 | E23: 6800 | F23: 8075 | G23: 8415 | H23: 9265 | I23: 10115
A24: 25F | B24: 5950 | C24: 6120 | D24: 6545 | E24: 6970 | F24: 8330 | G24: 8670 | H24: 9520 | I24: 10370
A25: 26F | B25: 6120 | C25: 6290 | D25: 6715 | E25: 7140 | F25: 8585 | G25: 8925 | H25: 9775 | I25: 10625
A26: 27F | B26: 6290 | C26: 6460 | D26: 6885 | E26: 7310 | F26: =SUM(F25+255) -> 8840 | G26: 9180 | H26: 10030 | I26: 10880
A27: 28F | B27: 6460 | C27: 6630 | D27: 7055 | E27: 7480 | F27: 9095 | G27: 9435 | H27: 10285 | I27: 11135
A28: 29F | B28: 6630 | C28: 6800 | D28: 7225 | E28: 7650 | F28: 9350 | G28: 9690 | H28: 10540 | I28: 11390
A29: 30F | B29: 6800 | C29: 6970 | D29: 7395 | E29: 7820 | F29: 9605 | G29: 9945 | H29: 10795 | I29: 11645
A30: 備註 | B30: 載重增加1人+85元, 樓層增加1層+170元 每月2次保養價格*1.25倍 | F30: 載重增加1人+170元, 樓層增加1層+255元 每月2次保養價格*1.25倍
A34: 永佳捷保養價格表(客梯)
A35: 保養種類 | B35: 120米/分-半包(1次/月) | F35: 150米/分-半包(1次/月)
A36: 樓層/人乘 | B36: 10人 | C36: 15人 | D36: 20人 | E36: 27人 | F36: 10人 | G36: 15人 | H36: 20人 | I36: 27人
A37: 12F | B37: 5950 | C37: 6800 | D37: 7650 | E37: 8840
A38: 13F | B38: =SUM(B37+340) -> 6290 | C38: =SUM(C37+340) -> 7140 | D38: =SUM(D37+340) -> 7990 | E38: =SUM(E37+340) -> 9180
A39: 14F | B39: =SUM(B38+340) -> 6630 | C39: 7480 | D39: 8330 | E39: 9520
A40: 15F | B40: 6970 | C40: 7820 | D40: 8670 | E40: 9860 | F40: 7820 | G40: 8670 | H40: 9520 | I40: 10710
A41: 16F | B41: 7310 | C41: 8160 | D41: 9010 | E41: 10200 | F41: =SUM(F40+340) -> 8160 | G41: =SUM(G40+340) -> 9010 | H41: =SUM(H40+340) -> 9860 | I41: =SUM(I40+340) -> 11050
A42: 17F | B42: 7650 | C42: 8500 | D42: 9350 | E42: 10540 | F42: 8500 | G42: 9350 | H42: 10200 | I42: 11390
A43: 18F | B43: 7990 | C43: 8840 | D43: 9690 | E43: 10880 | F43: 8840 | G43: 9690 | H43: 10540 | I43: 11730
A44: 19F | B44: 8330 | C44: 9180 | D44: 10030 | E44: 11220 | F44: 9180 | G44: 10030 | H44: 10880 | I44: 12070
A45: 20F | B45: 8670 | C45: 9520 | D45: 10370 | E45: 11560 | F45: 9520 | G45: 10370 | H45: 11220 | I45: 12410
A46: 21F | B46: 9010 | C46: 9860 | D46: 10710 | E46: 11900 | F46: 9860 | G46: 10710 | H46: 11560 | I46: 12750
A47: 22F | B47: 9350 | C47: 10200 | D47: 11050 | E47: 12240 | F47: 10200 | G47: 11050 | H47: 11900 | I47: 13090
A48: 23F | B48: 9690 | C48: 10540 | D48: 11390 | E48: 12580 | F48: 10540 | G48: 11390 | H48: 12240 | I48: 13430
A49: 24F | B49: 10030 | C49: 10880 | D49: 11730 | E49: 12920 | F49: 10880 | G49: 11730 | H49: 12580 | I49: 13770
A50: 25F | B50: 10370 | C50: 11220 | D50: 12070 | E50: 13260 | F50: 11220 | G50: 12070 | H50: 12920 | I50: 14110
A51: 26F | B51: 10710 | C51: 11560 | D51: 12410 | E51: 13600 | F51: 11560 | G51: 12410 | H51: 13260 | I51: 14450
A52: 27F | B52: 11050 | C52: 11900 | D52: 12750 | E52: 13940 | F52: 11900 | G52: 12750 | H52: 13600 | I52: 14790
A53: 28F | B53: 11390 | C53: 12240 | D53: 13090 | E53: 14280 | F53: 12240 | G53: 13090 | H53: 13940 | I53: 15130
A54: 29F | B54: 11730 | C54: 12580 | D54: 13430 | E54: 14620 | F54: 12580 | G54: 13430 | H54: 14280 | I54: 15470
A55: 30F | B55: =SUM(B54+340) -> 12070 | C55: 12920 | D55: 13770 | E55: 14960 | F55: 12920 | G55: 13770 | H55: 14620 | I55: 15810
A56: 31F | B56: 12410 | C56: 13260 | D56: 14110 | E56: 15300 | F56: 13260 | G56: 14110 | H56: 14960 | I56: 16150
A57: 32F | B57: 12750 | C57: 13600 | D57: 14450 | E57: 15640 | F57: 13600 | G57: 14450 | H57: 15300 | I57: 16490
A58: 33F | B58: 13090 | C58: 13940 | D58: 14790 | E58: 15980 | F58: 13940 | G58: 14790 | H58: 15640 | I58: 16830
A59: 34F | B59: 13430 | C59: 14280 | D59: 15130 | E59: 16320 | F59: 14280 | G59: 15130 | H59: 15980 | I59: 17170
A60: 35F | B60: 13770 | C60: 14620 | D60: 15470 | E60: 16660 | F60: 14620 | G60: 15470 | H60: 16320 | I60: 17510
A61: 36F | B61: 14110 | C61: 14960 | D61: 15810 | E61: 17000 | F61: 14960 | G61: 15810 | H61: 16660 | I61: 17850
A62: 備註 | B62: 載重增加1人+170元, 樓層增加1層+340元 每月2次保養價格*1.25倍 | F62: 載重增加1人+170元, 樓層增加1層+340元 每月2次保養價格*1.25倍

Sheet 貨梯保養價格表 (2)
A1: 保養價格表(貨梯) | I1: 保養價格表(病床梯)
A2: 保養種類 | B2: 載貨梯-半包(1次/月) | I2: 病床梯-半包(1次/月)
A3: 樓層/載重 | B3: 1000KG | C3: 1350KG | D3: 1500KG | E3: 1800KG | F3: 2000KG | G3: 2500KG | H3: 3000KG | I3: 750KG | J3: 1000KG | K3: 1350KG | L3: 1600KG
A4: 3F | B4: 3100 | C4: 4100 | D4: 4500 | E4: 5300 | F4: 5900 | G4: 7300 | H4: 8900
A5: 4F | B5: =SUM(B4+340) -> 3440 | C5: 4440 | D5: 4840 | E5: 5640 | F5: 6240 | G5: 7640 | H5: 9240 | I5: 5015 | J5: 5525 | K5: 6035 | L5: 6715
A6: 5F | B6: =SUM(B5+400) -> 3840 | C6: 4780 | D6: 5180 | E6: 5980 | F6: 6580 | G6: 7980 | H6: 9580 | I6: =SUM(I5+170) -> 5185 | J6: =SUM(J5+170) -> 5695 | K6: =SUM(K5+170) -> 6205 | L6: =SUM(L5+170) -> 6885
A7: 6F | B7: 4240 | C7: 5120 | D7: 5520 | E7: 6320 | F7: 6920 | G7: 8320 | H7: 9920 | I7: =SUM(I6+170) -> 5355 | J7: 5865 | K7: 6375 | L7: 7055
A8: 7F | B8: 4640 | C8: 5460 | D8: 5860 | E8: 6660 | F8: 7260 | G8: 8660 | H8: 10260 | I8: 5525 | J8: 6035 | K8: 6545 | L8: 7225
A9: 8F | B9: 5040 | C9: 5800 | D9: 6200 | E9: 7000 | F9: 7600 | G9: 9000 | H9: 10600 | I9: 5695 | J9: 6205 | K9: 6715 | L9: 7395
A10: 9F | B10: 5440 | C10: 6140 | D10: 6540 | E10: 7340 | F10: 7940 | G10: 9340 | H10: 10940 | I10: 5865 | J10: 6375 | K10: 6885 | L10: 7565
A11: 10F | B11: 5840 | C11: 6480 | D11: 6880 | E11: 7680 | F11: 8280 | G11: 9680 | H11: 11280 | I11: 6035 | J11: 6545 | K11: 7055 | L11: 7735
A12: 11F | B12: 6240 | C12: 6820 | D12: 7220 | E12: 8020 | F12: 8620 | G12: 10020 | H12: 11620 | I12: 6205 | J12: 6715 | K12: 7225 | L12: 7905
A13: 12F | B13: 6640 | C13: 7160 | D13: 7560 | E13: 8360 | F13: 8960 | G13: 10360 | H13: 11960 | I13: 6375 | J13: 6885 | K13: 7395 | L13: 8075
A14: 13F | B14: 7040 | C14: 7500 | D14: 7900 | E14: 8700 | F14: 9300 | G14: 10700 | H14: 12300 | I14: 6545 | J14: 7055 | K14: 7565 | L14: 8245
A15: 14F | B15: 7440 | C15: 7840 | D15: 8240 | E15: 9040 | F15: 9640 | G15: 11040 | H15: 12640 | I15: 6715 | J15: 7225 | K15: 7735 | L15: 8415
A16: 15F | B16: 7840 | C16: 8180 | D16: 8580 | E16: 9380 | F16: 9980 | G16: 11380 | H16: 12980 | I16: 6885 | J16: 7395 | K16: 7905 | L16: 8585
A17: 16F | I17: 7055 | J17: 7565 | K17: 8075 | L17: 8755
A18: 17F | I18: 7225 | J18: 7735 | K18: 8245 | L18: 8925
A19: 18F | I19: 7395 | J19: 7905 | K19: 8415 | L19: 9095
A20: 19F | I20: 7565 | J20: 8075 | K20: 8585 | L20: 9265
A21: 20F | I21: 7735 | J21: 8245 | K21: 8755 | L21: 9435
A22: 21F | I22: 7905 | J22: 8415 | K22: 8925 | L22: 9605
A23: 22F | I23: =SUM(I22+170) -> 8075 | J23: 8585 | K23: 9095 | L23: 9775
A24: 23F | I24: 8245 | J24: 8755 | K24: 9265 | L24: 9945
A25: 24F | I25: 8415 | J25: 8925 | K25: 9435 | L25: 10115
A26: 25F | I26: 8585 | J26: 9095 | K26: 9605 | L26: 10285
A27: 26F | I27: 8755 | J27: 9265 | K27: 9775 | L27: 10455
A28: 27F | I28: 8925 | J28: 9435 | K28: 9945 | L28: 10625
A29: 28F | I29: 9095 | J29: 9605 | K29: 10115 | L29: 10795
A30: 備註 | B30: 樓層增加1層+340元 每月2次保養價格*1.25倍 | I30: 樓層增加1層+170元 每月2次保養價格*1.25倍

Sheet 無機房.家用梯養價格表 (3)
A1: 永佳捷保養價格表(客梯)
A2: 保養種類 | B2: 無機房-半包(1次/月) | E2: 家用梯-半包(2次/月) | G2: 家用梯-半包(1次/月) | I2: 家用梯-全包(2次/月)
A3: 樓層/人乘 | B3: 6-8人 | C3: 10人 | D3: 15人 | E3: 3人 | F3: 4人 | G3: 3人 | H3: 4人 | I3: 3人 | J3: 4人
A4: 3F | B4: 2550 | E4: 2100 | F4: 2300 | G4: 1600 | H4: 1700 | I4: 3200 | J4: 3400
A5: 4F | B5: =SUM(B4+100) -> 2650 | E5: =SUM(E4+100) -> 2200 | F5: =SUM(F4+100) -> 2400 | G5: =SUM(G4+100) -> 1700 | H5: =SUM(H4+100) -> 1800 | I5: 3400 | J5: 3600
A6: 5F | B6: =SUM(B5+100) -> 2750 | C6: 2950 | D6: 3400 | E6: =SUM(E5+100) -> 2300 | F6: 2500 | G6: =SUM(G5+100) -> 1800 | H6: =SUM(H5+100) -> 1900 | I6: 3600 | J6: 3800
A7: 6F | B7: =SUM(B6+170) -> 2920 | C7: =SUM(C6+170) -> 3120 | D7: 3570
A8: 7F | B8: =SUM(B7+170) -> 3090 | C8: =SUM(C7+170) -> 3290 | D8: 3740
A9: 8F | B9: =SUM(B8+170) -> 3260 | C9: 3460 | D9: 3910
A10: 9F | B10: 3430 | C10: 3630 | D10: 4080
A11: 10F | B11: 3600 | C11: 3800 | D11: 4250
A12: 11F | B12: 3770 | C12: 3970 | D12: 4420
A13: 12F | B13: 3940 | C13: 4140 | D13: 4590
A14: 13F | B14: 4110 | C14: 4310 | D14: 4760
A15: 備註 | B15: 每月保養2次價格*1.25倍

Sheet 保養價格分布情況 (4)
A3: 去年 | B3: 成交均價 | C3: 平均牌價 | D3: 平均折扣率
A4: 半包 一次保養 | B4: 2510.42075 | C4: 3220 | D4: 0.78
A5: 半包 二次保養 | B5: 4570 | C5: 6100 | D5: 0.74
A6: 清包 | B6: 2980 | C6: 3040
A7: 全包 一次保養 | B7: 4750 | C7: 7360 | D7: 0.64
A8: 全包 二次保養 | B8: 6760 | C8: 10640 | D8: 0.635
A11: 全國成交價 | B11: 3650
A12: 一般梯 | B12: 4060
A13: 家用梯 | B13: 1590
A15: 權限說明參考 | B15: 契約人員 | C15: 80%以上
C16: 70-79%
C17: 60-69%
C18: 50-59%
B19: 經理 | C19: 49%以下

Sheet 工作表1 (hidden)
A1: 附 表 一 【 劉先生 】
A3: 1 | B3: 型式（Type Form） | C3: : | D3: MAH100-8*9-CO60 * 1 台(有機房電梯) MA001
A4: 2 | B4: 載重（Load/Passenger） | C4: : | D4: 550 公斤/ 8 人
A5: 3 | B5: 停止樓數（No. of Stop） | C5: : | D5: 9 停／ 9 樓（ B1 - 7 F、RF)
A6: 4 | B6: 速度（Speed） | C6: : | D6: 60 m/min
A7: 5 | B7: 控制方式（Control） | C7: : | D7: 交流變壓變頻選擇性集合式控制
A8: 6 | B8: 電源（Power Source） | C8: : | D8: 動力用交流三相，380伏特，60Hz
A9: 7 | B9: 出人口門框（Jamb） | C9: : | D9: 小型門框：髮紋不鏽鋼門框(全樓)
A10: 8 | B10: 出人口門（Hatch Door） | C10: : | D10: 二片門對開式彩妝鋼板門(全樓)
A11: 9 | B11: 出人口寬度（Opening） | C11: : | D11: 800 mm× 2100 mm（W*H)
A12: 10 | B12: 出人口指示燈及按鈕（Hall Indicator&Button）：依型錄選擇
A13: 11 | B13: 梯廂（Cage） | C13: : | D13: a.、天花板型式（Ceiling Type） | F13: : | G13: MB014
D14: b、側板（Enclosure Wall) | F14: : | G14: 前側：彩妝鋼板
G15: 兩側：彩妝鋼板 + 鏡面不銹鋼(扶手側)
G16: 後側：彩妝鋼板 + 鏡面不銹鋼
D17: c、廂門（Cage Door) | F17: : | G17: 彩妝鋼板
D18: d、地板（Flooring) | F18: : | G18: PVC地板
D19: e、換氣（Ventilation) | F19: : | G19: 天花板扇（Ceiling Fan)
D20: f、操作盤（Operating Panel） | F20: : | G20: ME016
D21: g、梯廂位置指示器（Car Position Indicator)：附於OPB上
A22: 12 | B22: 車廂尺寸 | C22: : | D22: 1400 mm× 1030 mm× 2300mm（W*D*H)
A23: 13 | B23: 警報方式（Alarm） | C23: : | D23: 電鈴及對講機（Bell & Interphone）
A24: 14 | B24: 升降路尺寸及各層樓高度（Hoist Way & Each Floor Height）：依計劃圖（As Per Layout Drawing）
A25: 15 | B25: 其他（Other） | C25: : | D25: A、智能管理系統
D26: B、停電自動複歸最近樓層(ARD)
D27: C、車廂意外移動保護裝置
D28: D、紅外線檢測裝置(光幕防夾裝置)
